Workbook

Sheet start (hidden)
B2: Das Makro ist momentan nicht aktiviert
B3: Bitte Aktivieren Sie das Makro
B4: Ohne Makro funktioniert diese Datei nicht
B6: roland.schnurr@sixsigmablackbelt.de
B8: https://www.sixsigmablackbelt.de
B10: Abhängig von den Einstellungen in Microsoft Office kann es sein, dass Microsoft Dateien aus dem Internet
B11: mit der Endung .xlsb grundsätzlich beim Öffnen mit folgendem Warnhinweis versieht.
B23: Alle Dateien auf dieser Website sind grundsätzlich mit virustotal auf Freiheit von Viren überprüft.
B24: Virustotal prüft mit den 63 gängigsten Virenprogrammen auf Virenfreiheit.
B26: Möchten Sie mit unseren Dateien arbeiten und Microsoft gibt Ihnen obigen Hinweis, gehen Sie wie folgt vor:
B28: ="- Speichern Sie die Datei" -> - Speichern Sie die Datei
B29: ="- Wählen Sie den Speicherort (im Standardordner „downloads“)." -> - Wählen Sie den Speicherort (im Standardordner „downloads“).
B30: ="- Datei auswählen" -> - Datei auswählen
B31: ="- rechte Maustaste" -> - rechte Maustaste
B32: ="- Ein Fenster erscheint. Der letzte Punkt in diesem Fenster ist „Eigenschaften“" -> - Ein Fenster erscheint. Der letzte Punkt in diesem Fenster ist „Eigenschaften“
B33: ="- Wählen Sie diesen Punkt aus" -> - Wählen Sie diesen Punkt aus
B34: ="- Setzen Sie in dem erscheinenden Fenster den Haken bei „Zulassen“ (siehe unten)" -> - Setzen Sie in dem erscheinenden Fenster den Haken bei „Zulassen“ (siehe unten)
B35: ="- Klicken Sie auf „Übernehmen“ und dann auf „OK“" -> - Klicken Sie auf „Übernehmen“ und dann auf „OK“
B36: ="- Danach können Sie die Datei öffnen und mit ihr arbeiten." -> - Danach können Sie die Datei öffnen und mit ihr arbeiten.

Sheet input
O3: Prozess- und Maschinenfähigkeit
C5: i | D5: xi | F5: i | G5: xi | I5: i | J5: xi | L5: i | M5: xi | O5: Werte können geändert werden | AC5: Diese Version ist eingeschränkt
C6: 1 | D6: 20 | F6: 51 | I6: 101 | L6: 151 | O6: Werte werden berechnet (Blatt Berechnung) | AC6: - Es sind maximal 25 Teile berechenbar
C7: 2 | D7: 21 | F7: 52 | I7: 102 | L7: 152 | AC7: ="- Die Datei ist nur als .xlsm speicherbar" -> - Die Datei ist nur als .xlsm speicherbar
C8: 3 | D8: 21.5 | F8: 53 | I8: 103 | L8: 153 | O8: Artikel: | P8: Halter
C9: 4 | D9: 19 | F9: 54 | I9: 104 | L9: 154 | O9: A-Nummer | P9: C2G234824ß | AC9: Die Version für bis zu 200 Teile (M0463) können Sie unter untenstehendem Link erwerben
C10: 5 | D10: 19 | F10: 55 | I10: 105 | L10: 155 | O10: Zeichnung: | P10: UZT1340124357 | AC10: =HYPERLINK("https://www.sixsigmablackbelt.de/preisvergleich/","Preise und Bestellung") -> Preise und Bestellung
C11: 6 | D11: 20.4 | F11: 56 | I11: 106 | L11: 156 | O11: Prüfer: | P11: Maier
C12: 7 | D12: 18.3 | F12: 57 | I12: 107 | L12: 157 | O12: Messmittel: | P12: Waage 47.22452 | AC12: Fragen gerne an:
C13: 8 | D13: 19.9 | F13: 58 | I13: 108 | L13: 158 | O13: Datum: | P13: 2014-12-10 | AC13: =HYPERLINK("mailto:roland.schnurr@sixsigmablackbelt.de","roland.schnurr@sixsigmablackbelt.de") -> roland.schnurr@sixsigmablackbelt.de
C14: 9 | D14: 18.7 | F14: 59 | I14: 109 | L14: 159 | O14: Merkmal: | P14: Länge
C15: 10 | D15: 18 | F15: 60 | I15: 110 | L15: 160 | O15: Maßeinheit: | P15: mm
C16: 11 | D16: 17.7 | F16: 61 | I16: 111 | L16: 161 | O16: Sollwert msoll = | Q16: 19
C17: 12 | D17: 19.1 | F17: 62 | I17: 112 | L17: 162 | O17: Unterer Grenzwert UGW = | Q17: 16
C18: 13 | D18: 19.7 | F18: 63 | I18: 113 | L18: 163 | O18: Oberer Grenzwert OGW = | Q18: 23
C19: 14 | D19: 18.1 | F19: 64 | I19: 114 | L19: 164 | O19: Anzahl Klassen Histogramm = | Q19: 12
C20: 15 | D20: 18.4 | F20: 65 | I20: 115 | L20: 165 | O20: Cmk< | P20: 1.33 | Q20: Prozess nicht fähig
C21: 16 | D21: 17.5 | F21: 66 | I21: 116 | L21: 166 | O21: Cmk | P21: dazwischen | Q21: Prozess bedingt fähig
C22: 17 | D22: 18.9 | F22: 67 | I22: 117 | L22: 167 | O22: Cmk> | P22: 1.66 | Q22: Prozess fähig
C23: 18 | D23: 19 | F23: 68 | I23: 118 | L23: 168
C24: 19 | D24: 20.5 | F24: 69 | I24: 119 | L24: 169 | O24: Umfang der Stichprobe | Q24: =Anzahl -> 25
C25: 20 | D25: 17.3 | F25: 70 | I25: 120 | L25: 170 | O25: Mittelwert m | Q25: =Mittelwert -> 19.092
C26: 21 | D26: 18.3 | F26: 71 | I26: 121 | L26: 171 | O26: Standardabweichung s | Q26: =Standardabweichung -> 1.10375118
C27: 22 | D27: 18.4 | F27: 72 | I27: 122 | L27: 172 | O27: Die Werte sind nach Andersson Darling Test | Q27: =IF(calculation!BO8<0.05,"nicht normalverteilt","normalverteilt") -> normalverteilt
C28: 23 | D28: 18.6 | F28: 73 | I28: 123 | L28: 173
C29: 24 | D29: 19.8 | F29: 74 | I29: 124 | L29: 174
C30: 25 | D30: 20.2 | F30: 75 | I30: 125 | L30: 175
C31: 26 | F31: 76 | I31: 126 | L31: 176 | O31: Fähigkeits- kennwerte | P31: Cmu | Q31: =CMU -> 0.9337853364
C32: 27 | F32: 77 | I32: 127 | L32: 177 | P32: Cmo | Q32: =CMO -> 1.180217689
C33: 28 | F33: 78 | I33: 128 | L33: 178 | P33: Cm | Q33: =CM -> 1.057001513
C34: 29 | F34: 79 | I34: 129 | L34: 179 | P34: Cmk | Q34: =CMK -> 0.9337853364
C35: 30 | F35: 80 | I35: 130 | L35: 180 | O35: ="Bewertung cmk =>" -> Bewertung cmk => | Q35: =IF(Q34<P20,Q20,IF(Q34>P22,Q22,Q21)) -> Prozess nicht fähig
C36: 31 | F36: 81 | I36: 131 | L36: 181
C37: 32 | F37: 82 | I37: 132 | L37: 182 | O37: Median z | Q37: =Median -> 19
C38: 33 | F38: 83 | I38: 133 | L38: 183 | O38: Spannweite R | Q38: =Spannweite -> 4.2
C39: 34 | F39: 84 | I39: 134 | L39: 184 | O39: Minimum | Q39: =Minimum -> 17.3
C40: 35 | F40: 85 | I40: 135 | L40: 185 | O40: Maximum | Q40: =Maximum -> 21.5
C41: 36 | F41: 86 | I41: 136 | L41: 186
C42: 37 | F42: 87 | I42: 137 | L42: 187 | O42: Berechnete Leistung in ppm
C43: 38 | F43: 88 | I43: 138 | L43: 188 | O43: Über- schreitungs- anteil | P43: pUGW | Q43: =BERPUGW -> 2544.417258
C44: 39 | F44: 89 | I44: 139 | L44: 189 | P44: pOGW | Q44: =BERPOGW -> 199.5690189
C45: 40 | F45: 90 | I45: 140 | L45: 190 | P45: p | Q45: =BERP -> 2743.986277
C46: 41 | F46: 91 | I46: 141 | L46: 191
C47: 42 | F47: 92 | I47: 142 | L47: 192 | O47: Beobachtete Leistung in ppm
C48: 43 | F48: 93 | I48: 143 | L48: 193 | O48: Über- schreitungs- anteil | P48: pUGW | Q48: =BEOBPUGW -> 0
C49: 44 | F49: 94 | I49: 144 | L49: 194 | P49: pOGW | Q49: =BEOBPOGW -> 0 | S49: Ist Ihr Messwert einseitig begrenzt, so geben Sie nur den entsprechenden oberen oder unteren Grenzwert an. Bei einer einseitigen Grenze wird im industriellen Umfeld nur der Cmk berechnet.
C50: 45 | F50: 95 | I50: 145 | L50: 195 | P50: p | Q50: =BEOBPPM -> 0
C51: 46 | F51: 96 | I51: 146 | L51: 196
C52: 47 | F52: 97 | I52: 147 | L52: 197
C53: 48 | F53: 98 | I53: 148 | L53: 198
C54: 49 | F54: 99 | I54: 149 | L54: 199
C55: 50 | F55: 100 | I55: 150 | L55: 200
D57: Datum: | E57: __________________ | Q57: Unterschrift: | R57: __________________ | V57: Abteilung: | W57: __________________

Sheet calculation (hidden)
A1: R B H
C5: =IF(input!D6="","",input!D6) -> 20 | F5: =IF(input!G6="","",input!G6) ->  | I5: =IF(input!J6="","",input!J6) ->  | L5: =IF(input!M6="","",input!M6) ->  | AD5: 1 | AE5: =IF((Anzahl>AD5),AD5,Anzahl) -> 1 | AF5: =IF(C5<>"",C5,1) -> 20 | AG5: =IF(OGW="",#N/A,IF(C5<>"",OGW,Q17)) -> 23 | AH5: =IF(UGW="",#N/A,IF(C5<>"",UGW,#N/A)) -> 16 | AI5: =fxds-Standardabweichung -> 17.98824882 | AJ5: =fxds+Standardabweichung -> 20.19575118 | AK5: =fxds-2*Standardabweichung -> 16.88449764 | AL5: =fxds+2*Standardabweichung -> 21.29950236 | AM5: =fxds-3*Standardabweichung -> 15.78074646 | AN5: =fxds+3*Standardabweichung -> 22.40325354 | AO5: =fxds -> 19.092 | AQ5: =IF(AND(C5<>"",C5<UGW),1,0) -> 0 | AR5: =IF(AND(C5<>"",C5>OGW),1,0) -> 0 | AV5: -6 | AW5: =fxds+AV5*Standardabweichung -> 12.46949292 | AX5: 3 | AY5: =AX5*2 -> 6 | AZ5: =AW5 -> 12.46949292 | BC5: 1 | BD5: =IF(C5="",NA(),SMALL(xi,BE5)) -> 17.3 | BE5: =IF(C5="","",1) -> 1 | BF5: =IF(C5="","",NORMSDIST((BD5-fxds)/Standardabweichung)) -> 0.05223548027 | BG5: =IF(C5="","",1-BF5) -> 0.9477645197 | BH5: =IF(IF(C5="","",SMALL(BG,BE5))=0,0.0001,IF(C5="","",SMALL(BG,BE5))) -> 0.01456764541 | BI5: =IF(C5="","",(2*BE5-1)*(LN(BH5)+LN(BF5))) -> -7.180945594 | BJ5: =IF(C5="",NA(),NORMSINV((BE5-0.3)/(Anzahl+0.4))) -> -1.917944016 | BM5: =Standardabweichung*BN5+fxds -> 22.40325354 | BN5: 3 | BO5: =SUM(Normalverteilung_S) -> -632.8305242 | BP5: =IF(AND(BO7<13, BO7>=0.6),EXP(1.2937-5.709*BO7+0.0186*BO7^ 2),0) -> 0
C6: =IF(input!D7="","",input!D7) -> 21 | F6: =IF(input!G7="","",input!G7) ->  | I6: =IF(input!J7="","",input!J7) ->  | L6: =IF(input!M7="","",input!M7) ->  | AD6: 2 | AE6: 2 | AF6: =IF(C6<>"",C6,AG5) -> 21 | AG6: =IF(OGW="",#N/A,IF(C6<>"",OGW,#N/A)) -> 23 | AH6: 16 | AI6: =AI5 -> 17.98824882 | AJ6: 20.19575118 | AK6: 16.88449764 | AL6: 21.29950236 | AM6: 15.78074646 | AN6: 22.40325354 | AO6: 19.092 | AQ6: 0 | AR6: 0 | AV6: -5 | AW6: 13.5732441 | AX6: 3 | AY6: =AX6*2 -> 6 | AZ6: =AZ5 -> 12.46949292 | BC6: 2 | BD6: 17.5 | BE6: =IF(C6="","",1+BE5) -> 2 | BF6: 0.07460125777 | BG6: 0.9253987422 | BH6: =IF(C6="","",SMALL(BG,BE6)) -> 0.04193583511 | BI6: -17.30163743 | BJ6: -1.499059227 | BM6: =Standardabweichung*BN6+fxds -> 19.092 | BN6: 0 | BO6: =-BO5/Anzahl-Anzahl -> 0.3132209684 | BP6: =IF(AND(BO7<0.6,BO7>=0.34),EXP(0.9177-4.279*BO7-1.38*BO7^2),0) -> 0
C7: =IF(input!D8="","",input!D8) -> 21.5 | F7: =IF(input!G8="","",input!G8) ->  | I7: =IF(input!J8="","",input!J8) ->  | L7: =IF(input!M8="","",input!M8) ->  | Q7: =Maßeinheit -> mm | R7: =Merkmal -> Länge | S7: =IF(UGW<>"",six_cmu(Mittelwert,UGW,Standardabweichung),"") -> 0.9337853364 | T7: =MEDIAN(xi) -> 19 | U7: =IF(UGW<>0,NORMDIST(UGW,Mittelwert,Standardabweichung,1)*1000000,0) -> 2544.417258 | V7: =IF(UGW<>"",AQ205/R8*1000000,0) -> 0 | AD7: 3 | AE7: 3 | AF7: =IF(C7<>"",C7,AG6) -> 21.5 | AG7: 23 | AH7: 16 | AI7: 17.98824882 | AJ7: 20.19575118 | AK7: 16.88449764 | AL7: 21.29950236 | AM7: 15.78074646 | AN7: 22.40325354 | AO7: 19.092 | AQ7: 0 | AR7: 0 | AV7: -4 | AW7: 14.67699528 | AX7: 3 | AY7: 6 | AZ7: =AZ6 -> 12.46949292 | BC7: 3 | BD7: 17.7 | BE7: 3 | BF7: 0.1036267192 | BG7: 0.8963732808 | BH7: 0.1010396662 | BI7: -22.7960109 | BJ7: -1.246452206 | BM7: =Standardabweichung*BN7+fxds -> 15.78074646 | BN7: -3 | BO7: =BO6*(1+0.75/Anzahl+2.25/Anzahl^2) -> 0.323745193 | BP7: =IF(AND(BO7<0.34,BO7>=0.2),1-EXP(-8.318+42.796*BO7-59.938*BO7^2),0) -> 0.5253413862
C8: =IF(input!D9="","",input!D9) -> 19 | F8: =IF(input!G9="","",input!G9) ->  | I8: =IF(input!J9="","",input!J9) ->  | L8: =IF(input!M9="","",input!M9) ->  | Q8: =Sollwert -> 19 | R8: =six_a(xi) -> 25 | S8: =IF(OGW<>"",six_cmo(OGW,Mittelwert,Standardabweichung),"") -> 1.180217689 | T8: =Maximum-Minimum -> 4.2 | U8: =IF(OGW<>"",(1-NORMDIST(OGW,Mittelwert,Standardabweichung,1))*1000000,0) -> 199.5690189 | V8: =IF(OGW<>"",AR205/R8*1000000,0) -> 0 | AD8: 4 | AE8: 4 | AF8: =IF(C8<>"",C8,AF7) -> 19 | AG8: 23 | AH8: 16 | AI8: 17.98824882 | AJ8: 20.19575118 | AK8: 16.88449764 | AL8: 21.29950236 | AM8: 15.78074646 | AN8: 22.40325354 | AO8: 19.092 | AQ8: 0 | AR8: 0 | AV8: -2 | AW8: 16.88449764 | AX8: 3 | AY8: 6 | AZ8: 12.46949292 | BC8: 4 | BD8: 18 | BE8: 4 | BF8: 0.161245129 | BG8: 0.838754871 | BH8: 0.1179988993 | BI8: -27.7333666 | BJ8: -1.055189681 | BO8: =MAX(BP5:BP8) -> 0.5253413862 | BP8: =IF(BO7<0.2,1-EXP(-13.436+101.14*BO7-223.73*BO7^2),0) -> 0
C9: =IF(input!D10="","",input!D10) -> 19 | F9: =IF(input!G10="","",input!G10) ->  | I9: =IF(input!J10="","",input!J10) ->  | L9: =IF(input!M10="","",input!M10) ->  | Q9: =UGW -> 16 | R9: =six_m(xi) -> 19.092 | S9: =IF(OR(UGW="",OGW=""),"",six_cm(OGW,UGW,Standardabweichung)) -> 1.057001513 | T9: =MIN(xi) -> 17.3 | U9: =BERPOGW+BERPUGW -> 2743.986277 | V9: =V8+V7 -> 0 | AD9: 5 | AE9: 5 | AF9: 19 | AG9: 23 | AH9: 16 | AI9: 17.98824882 | AJ9: 20.19575118 | AK9: 16.88449764 | AL9: 21.29950236 | AM9: 15.78074646 | AN9: 22.40325354 | AO9: 19.092 | AQ9: 0 | AR9: 0 | AV9: -1 | AW9: 17.98824882 | AX9: 3 | AY9: 6 | AZ9: 12.46949292 | BC9: 5 | BD9: 18.1 | BE9: 5 | BF9: 0.1843920436 | BG9: 0.8156079564 | BH9: 0.1577255957 | BI9: -31.83830647 | BJ9: -0.8963258813
C10: =IF(input!D11="","",input!D11) -> 20.4 | F10: =IF(input!G11="","",input!G11) ->  | I10: =IF(input!J11="","",input!J11) ->  | L10: =IF(input!M11="","",input!M11) ->  | Q10: =OGW -> 23 | R10: =six_st(xi) -> 1.10375118 | S10: =IF(OGW="",CMU,IF(UGW="",CMO,six_ck(CMO,CMU))) -> 0.9337853364 | T10: =MAX(xi) -> 21.5 | AD10: 6 | AE10: 6 | AF10: 20.4 | AG10: 23 | AH10: 16 | AI10: 17.98824882 | AJ10: 20.19575118 | AK10: 16.88449764 | AL10: 21.29950236 | AM10: 15.78074646 | AN10: 22.40325354 | AO10: 19.092 | AQ10: 0 | AR10: 0 | AV10: 1 | AW10: 20.19575118 | AX10: 3 | AY10: 6 | AZ10: 12.46949292 | BC10: 6 | BD10: 18.3 | BE10: 6 | BF10: 0.2365164647 | BG10: 0.7634835353 | BH10: 0.2053537622 | BI10: -33.2723443 | BJ10: -0.7573855717
C11: =IF(input!D12="","",input!D12) -> 18.3 | F11: =IF(input!G12="","",input!G12) ->  | I11: =IF(input!J12="","",input!J12) ->  | L11: =IF(input!M12="","",input!M12) ->  | R11: Stichprobe chronologisch | S11: OGW | AD11: 7 | AE11: 7 | AF11: 18.3 | AG11: 23 | AH11: 16 | AI11: 17.98824882 | AJ11: 20.19575118 | AK11: 16.88449764 | AL11: 21.29950236 | AM11: 15.78074646 | AN11: 22.40325354 | AO11: 19.092 | AQ11: 0 | AR11: 0 | AV11: 2 | AW11: 21.29950236 | AX11: 3 | AY11: 6 | AZ11: 12.46949292 | BC11: 7 | BD11: 18.3 | BE11: 7 | BF11: 0.2365164647 | BG11: 0.7634835353 | BH11: 0.2320693157 | BI11: -37.73193622 | BJ11: -0.6317365277
C12: =IF(input!D13="","",input!D13) -> 19.9 | F12: =IF(input!G13="","",input!G13) ->  | I12: =IF(input!J13="","",input!J13) ->  | L12: =IF(input!M13="","",input!M13) ->  | R12: Wahrscheinlichkeitsnetz | S12: UGW | AD12: 8 | AE12: 8 | AF12: 19.9 | AG12: 23 | AH12: 16 | AI12: 17.98824882 | AJ12: 20.19575118 | AK12: 16.88449764 | AL12: 21.29950236 | AM12: 15.78074646 | AN12: 22.40325354 | AO12: 19.092 | AQ12: 0 | AR12: 0 | AV12: 4 | AW12: 23.50700472 | AX12: 3 | AY12: 6 | AZ12: 12.46949292 | BC12: 8 | BD12: 18.4 | BE12: 8 | BF12: 0.2653450557 | BG12: 0.7346549443 | BH12: 0.2606155296 | BI12: -40.07149841 | BJ12: -0.5153632434
C13: =IF(input!D14="","",input!D14) -> 18.7 | F13: =IF(input!G14="","",input!G14) ->  | I13: =IF(input!J14="","",input!J14) ->  | L13: =IF(input!M14="","",input!M14) ->  | R13: Test auf Normalverteilung (Anderson Darling) | S13: ="+ 3 Sigma" -> + 3 Sigma | AD13: 9 | AE13: 9 | AF13: 18.7 | AG13: 23 | AH13: 16 | AI13: 17.98824882 | AJ13: 20.19575118 | AK13: 16.88449764 | AL13: 21.29950236 | AM13: 15.78074646 | AN13: 22.40325354 | AO13: 19.092 | AQ13: 0 | AR13: 0 | AV13: 5 | AW13: 24.6107559 | AX13: 3 | AY13: 6 | AZ13: 12.46949292 | BC13: 9 | BD13: 18.4 | BE13: 9 | BF13: 0.2653450557 | BG13: 0.7346549443 | BH13: 0.290868668 | BI13: -43.5473297 | BJ13: -0.4055961338
C14: =IF(input!D15="","",input!D15) -> 18 | F14: =IF(input!G15="","",input!G15) ->  | I14: =IF(input!J15="","",input!J15) ->  | L14: =IF(input!M15="","",input!M15) ->  | R14: Prozess- und Maschinenfähigkeit | S14: ="- 3 Sigma" -> - 3 Sigma | AD14: 10 | AE14: 10 | AF14: 18 | AG14: 23 | AH14: 16 | AI14: 17.98824882 | AJ14: 20.19575118 | AK14: 16.88449764 | AL14: 21.29950236 | AM14: 15.78074646 | AN14: 22.40325354 | AO14: 19.092 | AQ14: 0 | AR14: 0 | AV14: 6 | AW14: 25.71450708 | AX14: 3 | AY14: 6 | AZ14: 12.46949292 | BC14: 10 | BD14: 18.6 | BE14: 10 | BF14: 0.3278879685 | BG14: 0.6721120315 | BH14: 0.4971084875 | BI14: -34.46657532 | BJ14: -0.3005213318
C15: =IF(input!D16="","",input!D16) -> 17.7 | F15: =IF(input!G16="","",input!G16) ->  | I15: =IF(input!J16="","",input!J16) ->  | L15: =IF(input!M16="","",input!M16) ->  | S15: Mittelwert | AD15: 11 | AE15: 11 | AF15: 17.7 | AG15: 23 | AH15: 16 | AI15: 17.98824882 | AJ15: 20.19575118 | AK15: 16.88449764 | AL15: 21.29950236 | AM15: 15.78074646 | AN15: 22.40325354 | AO15: 19.092 | AQ15: 0 | AR15: 0 | AV15: -3 | AW15: 15.78074646 | AX15: 3 | AY15: 6 | AZ15: 12.46949292 | BC15: 11 | BD15: 18.7 | BE15: 11 | BF15: 0.3612376707 | BG15: 0.6387623293 | BH15: 0.5332142204 | BI15: -34.58807501 | BJ15: -0.1986715438
C16: =IF(input!D17="","",input!D17) -> 19.1 | F16: =IF(input!G17="","",input!G17) ->  | I16: =IF(input!J17="","",input!J17) ->  | L16: =IF(input!M17="","",input!M17) ->  | S16: Sollwert | AD16: 12 | AE16: 12 | AF16: 19.1 | AG16: 23 | AH16: 16 | AI16: 17.98824882 | AJ16: 20.19575118 | AK16: 16.88449764 | AL16: 21.29950236 | AM16: 15.78074646 | AN16: 22.40325354 | AO16: 19.092 | AQ16: 0 | AR16: 0 | AV16: 3 | AW16: 22.40325354 | AX16: 3 | AY16: 6 | AZ16: 12.46949292 | BC16: 12 | BD16: 18.9 | BE16: 12 | BF16: 0.4309514949 | BG16: 0.5690485051 | BH16: 0.5332142204 | BI16: -33.82361042 | BJ16: -0.09884688422
C17: =IF(input!D18="","",input!D18) -> 19.7 | F17: =IF(input!G18="","",input!G18) ->  | I17: =IF(input!J18="","",input!J18) ->  | L17: =IF(input!M18="","",input!M18) ->  | Q17: OGW | R17: UGW | S17: =" - 1 Sigma" -> - 1 Sigma | T17: =" + 1 Sigma" -> + 1 Sigma | U17: ="- 2 Sigma" -> - 2 Sigma | V17: =" + 2 Sigma" -> + 2 Sigma | W17: =" - 3 Sigma" -> - 3 Sigma | X17: =" + 3 Sigma" -> + 3 Sigma | Y17: =" Mittelwert" -> Mittelwert | AD17: 13 | AE17: 13 | AF17: 19.7 | AG17: 23 | AH17: 16 | AI17: 17.98824882 | AJ17: 20.19575118 | AK17: 16.88449764 | AL17: 21.29950236 | AM17: 15.78074646 | AN17: 22.40325354 | AO17: 19.092 | AQ17: 0 | AR17: 0 | BC17: 13 | BD17: 19 | BE17: 13 | BF17: 0.4667857796 | BG17: 0.5332142204 | BH17: 0.5332142204 | BI17: -34.76792159 | BJ17: 0
C18: =IF(input!D19="","",input!D19) -> 18.1 | F18: =IF(input!G19="","",input!G19) ->  | I18: =IF(input!J19="","",input!J19) ->  | L18: =IF(input!M19="","",input!M19) ->  | Q18: =IF(OGW<>"","OGW","") -> OGW | R18: =IF(UGW<>"","UGW","") -> UGW | AD18: 14 | AE18: 14 | AF18: 18.1 | AG18: 23 | AH18: 16 | AI18: 17.98824882 | AJ18: 20.19575118 | AK18: 16.88449764 | AL18: 21.29950236 | AM18: 15.78074646 | AN18: 22.40325354 | AO18: 19.092 | AQ18: 0 | AR18: 0 | AU18: Mittelwert | AV18: =Mittelwert -> 19.092 | AW18: 3 | BC18: 14 | BD18: 19 | BE18: 14 | BF18: 0.4667857796 | BG18: 0.5332142204 | BH18: 0.5690485051 | BI18: -35.79321001 | BJ18: 0.09884688422
C19: =IF(input!D20="","",input!D20) -> 18.4 | F19: =IF(input!G20="","",input!G20) ->  | I19: =IF(input!J20="","",input!J20) ->  | L19: =IF(input!M20="","",input!M20) ->  | AD19: 15 | AE19: 15 | AF19: 18.4 | AG19: 23 | AH19: 16 | AI19: 17.98824882 | AJ19: 20.19575118 | AK19: 16.88449764 | AL19: 21.29950236 | AM19: 15.78074646 | AN19: 22.40325354 | AO19: 19.092 | AQ19: 0 | AR19: 0 | AU19: OGW | AV19: =OGW -> 23 | AW19: 3 | BC19: 15 | BD19: 19 | BE19: 15 | BF19: 0.4667857796 | BG19: 0.5332142204 | BH19: 0.6387623293 | BI19: -35.09312266 | BJ19: 0.1986715438
C20: =IF(input!D21="","",input!D21) -> 17.5 | F20: =IF(input!G21="","",input!G21) ->  | I20: =IF(input!J21="","",input!J21) ->  | L20: =IF(input!M21="","",input!M21) ->  | AD20: 16 | AE20: 16 | AF20: 17.5 | AG20: 23 | AH20: 16 | AI20: 17.98824882 | AJ20: 20.19575118 | AK20: 16.88449764 | AL20: 21.29950236 | AM20: 15.78074646 | AN20: 22.40325354 | AO20: 19.092 | AQ20: 0 | AR20: 0 | AU20: UGW | AV20: =UGW -> 16 | AW20: 3 | BC20: 16 | BD20: 19.1 | BE20: 16 | BF20: 0.5028915125 | BG20: 0.4971084875 | BH20: 0.6721120315 | BI20: -33.62604261 | BJ20: 0.3005213318
C21: =IF(input!D22="","",input!D22) -> 18.9 | F21: =IF(input!G22="","",input!G22) ->  | I21: =IF(input!J22="","",input!J22) ->  | L21: =IF(input!M22="","",input!M22) ->  | AD21: 17 | AE21: 17 | AF21: 18.9 | AG21: 23 | AH21: 16 | AI21: 17.98824882 | AJ21: 20.19575118 | AK21: 16.88449764 | AL21: 21.29950236 | AM21: 15.78074646 | AN21: 22.40325354 | AO21: 19.092 | AQ21: 0 | AR21: 0 | AU21: Sollwert | AV21: =Sollwert -> 19 | AW21: 3 | BC21: 17 | BD21: 19.7 | BE21: 17 | BF21: 0.709131332 | BG21: 0.290868668 | BH21: 0.7346549443 | BI21: -21.51827329 | BJ21: 0.4055961338
C22: =IF(input!D23="","",input!D23) -> 19 | F22: =IF(input!G23="","",input!G23) ->  | I22: =IF(input!J23="","",input!J23) ->  | L22: =IF(input!M23="","",input!M23) ->  | AD22: 18 | AE22: 18 | AF22: 19 | AG22: 23 | AH22: 16 | AI22: =AI21 -> 17.98824882 | AJ22: 20.19575118 | AK22: 16.88449764 | AL22: 21.29950236 | AM22: 15.78074646 | AN22: 22.40325354 | AO22: 19.092 | AQ22: 0 | AR22: 0 | BC22: 18 | BD22: 19.8 | BE22: 18 | BF22: 0.7393844704 | BG22: 0.2606155296 | BH22: 0.7346549443 | BI22: -21.36020562 | BJ22: 0.5153632434
C23: =IF(input!D24="","",input!D24) -> 20.5 | F23: =IF(input!G24="","",input!G24) ->  | I23: =IF(input!J24="","",input!J24) ->  | L23: =IF(input!M24="","",input!M24) ->  | AD23: 19 | AE23: 19 | AF23: 20.5 | AG23: 23 | AH23: 16 | AI23: 17.98824882 | AJ23: 20.19575118 | AK23: 16.88449764 | AL23: 21.29950236 | AM23: 15.78074646 | AN23: 22.40325354 | AO23: 19.092 | AQ23: 0 | AR23: 0 | BC23: 19 | BD23: 19.9 | BE23: 19 | BF23: 0.7679306843 | BG23: 0.2320693157 | BH23: 0.7634835353 | BI23: -19.75502239 | BJ23: 0.6317365277
C24: =IF(input!D25="","",input!D25) -> 17.3 | F24: =IF(input!G25="","",input!G25) ->  | I24: =IF(input!J25="","",input!J25) ->  | L24: =IF(input!M25="","",input!M25) ->  | AD24: 20 | AE24: 20 | AF24: 17.3 | AG24: 23 | AH24: 16 | AI24: 17.98824882 | AJ24: 20.19575118 | AK24: 16.88449764 | AL24: 21.29950236 | AM24: 15.78074646 | AN24: 22.40325354 | AO24: 19.092 | AQ24: 0 | AR24: 0 | BC24: 20 | BD24: 20 | BE24: 20 | BF24: 0.7946462378 | BG24: 0.2053537622 | BH24: 0.7634835353 | BI24: -19.4891567 | BJ24: 0.7573855717
C25: =IF(input!D26="","",input!D26) -> 18.3 | F25: =IF(input!G26="","",input!G26) ->  | I25: =IF(input!J26="","",input!J26) ->  | L25: =IF(input!M26="","",input!M26) ->  | AD25: 21 | AE25: 21 | AF25: 18.3 | AG25: 23 | AH25: 16 | AI25: 17.98824882 | AJ25: 20.19575118 | AK25: 16.88449764 | AL25: 21.29950236 | AM25: 15.78074646 | AN25: 22.40325354 | AO25: 19.092 | AQ25: 0 | AR25: 0 | BC25: 21 | BD25: 20.2 | BE25: 21 | BF25: 0.8422744043 | BG25: 0.1577255957 | BH25: 0.8156079564 | BI25: -15.39430719 | BJ25: 0.8963258813
C26: =IF(input!D27="","",input!D27) -> 18.4 | F26: =IF(input!G27="","",input!G27) ->  | I26: =IF(input!J27="","",input!J27) ->  | L26: =IF(input!M27="","",input!M27) ->  | AD26: 22 | AE26: 22 | AF26: 18.4 | AG26: 23 | AH26: 16 | AI26: 17.98824882 | AJ26: 20.19575118 | AK26: 16.88449764 | AL26: 21.29950236 | AM26: 15.78074646 | AN26: 22.40325354 | AO26: 19.092 | AQ26: 0 | AR26: 0 | BC26: 22 | BD26: 20.4 | BE26: 22 | BF26: 0.8820011007 | BG26: 0.1179988993 | BH26: 0.838754871 | BI26: -12.9601466 | BJ26: 1.055189681
C27: =IF(input!D28="","",input!D28) -> 18.6 | F27: =IF(input!G28="","",input!G28) ->  | I27: =IF(input!J28="","",input!J28) ->  | L27: =IF(input!M28="","",input!M28) ->  | AD27: 23 | AE27: 23 | AF27: 18.6 | AG27: 23 | AH27: 16 | AI27: 17.98824882 | AJ27: 20.19575118 | AK27: 16.88449764 | AL27: 21.29950236 | AM27: 15.78074646 | AN27: 22.40325354 | AO27: 19.092 | AQ27: 0 | AR27: 0 | BC27: 23 | BD27: 20.5 | BE27: 23 | BF27: 0.8989603338 | BG27: 0.1010396662 | BH27: 0.8963732808 | BI27: -9.716162078 | BJ27: 1.246452206
C28: =IF(input!D29="","",input!D29) -> 19.8 | F28: =IF(input!G29="","",input!G29) ->  | I28: =IF(input!J29="","",input!J29) ->  | L28: =IF(input!M29="","",input!M29) ->  | AD28: 24 | AE28: 24 | AF28: 19.8 | AG28: 23 | AH28: 16 | AI28: 17.98824882 | AJ28: 20.19575118 | AK28: 16.88449764 | AL28: 21.29950236 | AM28: 15.78074646 | AN28: 22.40325354 | AO28: 19.092 | AQ28: 0 | AR28: 0 | BC28: 24 | BD28: 21 | BE28: 24 | BF28: 0.9580641649 | BG28: 0.04193583511 | BH28: 0.9253987422 | BI28: -5.657441087 | BJ28: 1.499059227
C29: =IF(input!D30="","",input!D30) -> 20.2 | F29: =IF(input!G30="","",input!G30) ->  | I29: =IF(input!J30="","",input!J30) ->  | L29: =IF(input!M30="","",input!M30) ->  | AD29: 25 | AE29: 25 | AF29: 20.2 | AG29: 23 | AH29: 16 | AI29: 17.98824882 | AJ29: 20.19575118 | AK29: 16.88449764 | AL29: 21.29950236 | AM29: 15.78074646 | AN29: 22.40325354 | AO29: 19.092 | AQ29: 0 | AR29: 0 | BC29: 25 | BD29: 21.5 | BE29: 25 | BF29: 0.9854323546 | BG29: 0.01456764541 | BH29: 0.9477645197 | BI29: -3.347875997 | BJ29: 1.917944016
F30: =IF(input!G31="","",input!G31) ->  | I30: =IF(input!J31="","",input!J31) ->  | L30: =IF(input!M31="","",input!M31) ->  | AD30: 26 | AE30: 25 | AF30: 20.2 | AI30: 17.98824882 | AJ30: 20.19575118 | AK30: 16.88449764 | AL30: 21.29950236 | AM30: 15.78074646 | AN30: 22.40325354 | AO30: 19.092 | AQ30: 0 | AR30: 0 | BC30: 26
F31: =IF(input!G32="","",input!G32) ->  | I31: =IF(input!J32="","",input!J32) ->  | L31: =IF(input!M32="","",input!M32) ->  | AD31: 27 | AE31: 25 | AF31: 20.2 | AI31: 17.98824882 | AJ31: 20.19575118 | AK31: 16.88449764 | AL31: 21.29950236 | AM31: 15.78074646 | AN31: 22.40325354 | AO31: 19.092 | AQ31: 0 | AR31: 0 | BC31: 27
F32: =IF(input!G33="","",input!G33) ->  | I32: =IF(input!J33="","",input!J33) ->  | L32: =IF(input!M33="","",input!M33) ->  | AD32: 28 | AE32: 25 | AF32: 20.2 | AI32: 17.98824882 | AJ32: 20.19575118 | AK32: 16.88449764 | AL32: 21.29950236 | AM32: 15.78074646 | AN32: 22.40325354 | AO32: 19.092 | AQ32: 0 | AR32: 0 | BC32: 28
F33: =IF(input!G34="","",input!G34) ->  | I33: =IF(input!J34="","",input!J34) ->  | L33: =IF(input!M34="","",input!M34) ->  | AD33: 29 | AE33: 25 | AF33: 20.2 | AI33: 17.98824882 | AJ33: 20.19575118 | AK33: 16.88449764 | AL33: 21.29950236 | AM33: 15.78074646 | AN33: 22.40325354 | AO33: 19.092 | AQ33: 0 | AR33: 0 | BC33: 29
F34: =IF(input!G35="","",input!G35) ->  | I34: =IF(input!J35="","",input!J35) ->  | L34: =IF(input!M35="","",input!M35) ->  | AD34: 30 | AE34: 25 | AF34: 20.2 | AI34: 17.98824882 | AJ34: 20.19575118 | AK34: 16.88449764 | AL34: 21.29950236 | AM34: 15.78074646 | AN34: 22.40325354 | AO34: 19.092 | AQ34: 0 | AR34: 0 | BC34: 30
F35: =IF(input!G36="","",input!G36) ->  | I35: =IF(input!J36="","",input!J36) ->  | L35: =IF(input!M36="","",input!M36) ->  | AD35: 31 | AE35: 25 | AF35: 20.2 | AI35: 17.98824882 | AJ35: 20.19575118 | AK35: 16.88449764 | AL35: 21.29950236 | AM35: 15.78074646 | AN35: 22.40325354 | AO35: 19.092 | AQ35: 0 | AR35: 0 | BC35: 31
F36: =IF(input!G37="","",input!G37) ->  | I36: =IF(input!J37="","",input!J37) ->  | L36: =IF(input!M37="","",input!M37) ->  | AD36: 32 | AE36: 25 | AF36: 20.2 | AI36: 17.98824882 | AJ36: 20.19575118 | AK36: 16.88449764 | AL36: 21.29950236 | AM36: 15.78074646 | AN36: 22.40325354 | AO36: 19.092 | AQ36: 0 | AR36: 0 | BC36: 32
F37: =IF(input!G38="","",input!G38) ->  | I37: =IF(input!J38="","",input!J38) ->  | L37: =IF(input!M38="","",input!M38) ->  | AD37: 33 | AE37: =IF((Anzahl>AD37),AD37,Anzahl) -> 25 | AF37: 20.2 | AH37: =IF(UGW="",#N/A,IF(C37<>"",UGW,#N/A)) ->  | AI37: 17.98824882 | AJ37: 20.19575118 | AK37: 16.88449764 | AL37: 21.29950236 | AM37: 15.78074646 | AN37: 22.40325354 | AO37: 19.092 | AQ37: =IF(AND(C37<>"",C37<UGW),1,0) -> 0 | AR37: =IF(AND(C37<>"",C37>OGW),1,0) -> 0 | BC37: 33 | BD37: =IF(C37="",NA(),SMALL(xi,BE37)) ->  | BF37: =IF(C37="","",NORMSDIST((BD37-fxds)/Standardabweichung)) ->  | BG37: =IF(C37="","",1-BF37) ->  | BH37: =IF(C37="","",SMALL(BG,BE37)) ->  | BI37: =IF(C37="","",(2*BE37-1)*(LN(BH37)+LN(BF37))) ->  | BJ37: =IF(C37="",NA(),NORMSINV((BE37-0.3)/(Anzahl+0.4))) -> 
F38: =IF(input!G39="","",input!G39) ->  | I38: =IF(input!J39="","",input!J39) ->  | L38: =IF(input!M39="","",input!M39) ->  | AD38: 34 | AE38: 25 | AF38: 20.2 | AG38: =IF(OGW="",#N/A,IF(C38<>"",OGW,#N/A)) ->  | AI38: =AI37 -> 17.98824882 | AJ38: 20.19575118 | AK38: 16.88449764 | AL38: 21.29950236 | AM38: 15.78074646 | AN38: 22.40325354 | AO38: 19.092 | AQ38: 0 | AR38: 0 | BC38: 34 | BE38: =IF(C38="","",1+BE37) -> 
F39: =IF(input!G40="","",input!G40) ->  | I39: =IF(input!J40="","",input!J40) ->  | L39: =IF(input!M40="","",input!M40) ->  | AD39: 35 | AE39: 25 | AF39: 20.2 | AI39: 17.98824882 | AJ39: 20.19575118 | AK39: 16.88449764 | AL39: 21.29950236 | AM39: 15.78074646 | AN39: 22.40325354 | AO39: 19.092 | AQ39: 0 | AR39: 0 | BC39: 35
F40: =IF(input!G41="","",input!G41) ->  | I40: =IF(input!J41="","",input!J41) ->  | L40: =IF(input!M41="","",input!M41) ->  | AD40: 36 | AE40: 25 | AF40: 20.2 | AI40: 17.98824882 | AJ40: 20.19575118 | AK40: 16.88449764 | AL40: 21.29950236 | AM40: 15.78074646 | AN40: 22.40325354 | AO40: 19.092 | AQ40: 0 | AR40: 0 | BC40: 36
F41: =IF(input!G42="","",input!G42) ->  | I41: =IF(input!J42="","",input!J42) ->  | L41: =IF(input!M42="","",input!M42) ->  | AD41: 37 | AE41: 25 | AF41: 20.2 | AI41: 17.98824882 | AJ41: 20.19575118 | AK41: 16.88449764 | AL41: 21.29950236 | AM41: 15.78074646 | AN41: 22.40325354 | AO41: 19.092 | AQ41: 0 | AR41: 0 | BC41: 37
F42: =IF(input!G43="","",input!G43) ->  | I42: =IF(input!J43="","",input!J43) ->  | L42: =IF(input!M43="","",input!M43) ->  | AD42: 38 | AE42: 25 | AF42: 20.2 | AI42: 17.98824882 | AJ42: 20.19575118 | AK42: 16.88449764 | AL42: 21.29950236 | AM42: 15.78074646 | AN42: 22.40325354 | AO42: 19.092 | AQ42: 0 | AR42: 0 | BC42: 38
F43: =IF(input!G44="","",input!G44) ->  | I43: =IF(input!J44="","",input!J44) ->  | L43: =IF(input!M44="","",input!M44) ->  | AD43: 39 | AE43: 25 | AF43: 20.2 | AI43: 17.98824882 | AJ43: 20.19575118 | AK43: 16.88449764 | AL43: 21.29950236 | AM43: 15.78074646 | AN43: 22.40325354 | AO43: 19.092 | AQ43: 0 | AR43: 0 | BC43: 39
F44: =IF(input!G45="","",input!G45) ->  | I44: =IF(input!J45="","",input!J45) ->  | L44: =IF(input!M45="","",input!M45) ->  | AD44: 40 | AE44: 25 | AF44: 20.2 | AI44: 17.98824882 | AJ44: 20.19575118 | AK44: 16.88449764 | AL44: 21.29950236 | AM44: 15.78074646 | AN44: 22.40325354 | AO44: 19.092 | AQ44: 0 | AR44: 0 | BC44: 40
F45: =IF(input!G46="","",input!G46) ->  | I45: =IF(input!J46="","",input!J46) ->  | L45: =IF(input!M46="","",input!M46) ->  | AD45: 41 | AE45: 25 | AF45: 20.2 | AI45: 17.98824882 | AJ45: 20.19575118 | AK45: 16.88449764 | AL45: 21.29950236 | AM45: 15.78074646 | AN45: 22.40325354 | AO45: 19.092 | AQ45: 0 | AR45: 0 | BC45: 41
F46: =IF(input!G47="","",input!G47) ->  | I46: =IF(input!J47="","",input!J47) ->  | L46: =IF(input!M47="","",input!M47) ->  | AD46: 42 | AE46: 25 | AF46: 20.2 | AI46: 17.98824882 | AJ46: 20.19575118 | AK46: 16.88449764 | AL46: 21.29950236 | AM46: 15.78074646 | AN46: 22.40325354 | AO46: 19.092 | AQ46: 0 | AR46: 0 | BC46: 42
F47: =IF(input!G48="","",input!G48) ->  | I47: =IF(input!J48="","",input!J48) ->  | L47: =IF(input!M48="","",input!M48) ->  | AD47: 43 | AE47: 25 | AF47: 20.2 | AI47: 17.98824882 | AJ47: 20.19575118 | AK47: 16.88449764 | AL47: 21.29950236 | AM47: 15.78074646 | AN47: 22.40325354 | AO47: 19.092 | AQ47: 0 | AR47: 0 | BC47: 43
F48: =IF(input!G49="","",input!G49) ->  | I48: =IF(input!J49="","",input!J49) ->  | L48: =IF(input!M49="","",input!M49) ->  | AD48: 44 | AE48: 25 | AF48: 20.2 | AI48: 17.98824882 | AJ48: 20.19575118 | AK48: 16.88449764 | AL48: 21.29950236 | AM48: 15.78074646 | AN48: 22.40325354 | AO48: 19.092 | AQ48: 0 | AR48: 0 | BC48: 44
F49: =IF(input!G50="","",input!G50) ->  | I49: =IF(input!J50="","",input!J50) ->  | L49: =IF(input!M50="","",input!M50) ->  | AD49: 45 | AE49: 25 | AF49: 20.2 | AI49: 17.98824882 | AJ49: 20.19575118 | AK49: 16.88449764 | AL49: 21.29950236 | AM49: 15.78074646 | AN49: 22.40325354 | AO49: 19.092 | AQ49: 0 | AR49: 0 | BC49: 45
F50: =IF(input!G51="","",input!G51) ->  | I50: =IF(input!J51="","",input!J51) ->  | L50: =IF(input!M51="","",input!M51) ->  | AD50: 46 | AE50: 25 | AF50: 20.2 | AI50: 17.98824882 | AJ50: 20.19575118 | AK50: 16.88449764 | AL50: 21.29950236 | AM50: 15.78074646 | AN50: 22.40325354 | AO50: 19.092 | AQ50: 0 | AR50: 0 | BC50: 46
F51: =IF(input!G52="","",input!G52) ->  | I51: =IF(input!J52="","",input!J52) ->  | L51: =IF(input!M52="","",input!M52) ->  | AD51: 47 | AE51: 25 | AF51: 20.2 | AI51: 17.98824882 | AJ51: 20.19575118 | AK51: 16.88449764 | AL51: 21.29950236 | AM51: 15.78074646 | AN51: 22.40325354 | AO51: 19.092 | AQ51: 0 | AR51: 0 | BC51: 47
F52: =IF(input!G53="","",input!G53) ->  | I52: =IF(input!J53="","",input!J53) ->  | L52: =IF(input!M53="","",input!M53) ->  | AD52: 48 | AE52: 25 | AF52: 20.2 | AI52: 17.98824882 | AJ52: 20.19575118 | AK52: 16.88449764 | AL52: 21.29950236 | AM52: 15.78074646 | AN52: 22.40325354 | AO52: 19.092 | AQ52: 0 | AR52: 0 | BC52: 48
F53: =IF(input!G54="","",input!G54) ->  | I53: =IF(input!J54="","",input!J54) ->  | L53: =IF(input!M54="","",input!M54) ->  | AD53: 49 | AE53: 25 | AF53: 20.2 | AI53: 17.98824882 | AJ53: 20.19575118 | AK53: 16.88449764 | AL53: 21.29950236 | AM53: 15.78074646 | AN53: 22.40325354 | AO53: 19.092 | AQ53: 0 | AR53: 0 | BC53: 49
F54: =IF(input!G55="","",input!G55) ->  | I54: =IF(input!J55="","",input!J55) ->  | L54: =IF(input!M55="","",input!M55) ->  | AD54: 50 | AE54: 25 | AF54: 20.2 | AI54: =AI53 -> 17.98824882 | AJ54: 20.19575118 | AK54: 16.88449764 | AL54: 21.29950236 | AM54: 15.78074646 | AN54: 22.40325354 | AO54: 19.092 | AQ54: 0 | AR54: 0 | BC54: 50
AD55: 51 | AE55: 25 | AF55: 20.2 | AI55: 17.98824882 | AJ55: 20.19575118 | AK55: 16.88449764 | AL55: 21.29950236 | AM55: 15.78074646 | AN55: 22.40325354 | AO55: 19.092 | AQ55: 0 | AR55: 0 | BC55: 51
AD56: 52 | AE56: 25 | AF56: 20.2 | AI56: 17.98824882 | AJ56: 20.19575118 | AK56: 16.88449764 | AL56: 21.29950236 | AM56: 15.78074646 | AN56: 22.40325354 | AO56: 19.092 | AQ56: 0 | AR56: 0 | BC56: 52
AD57: 53 | AE57: 25 | AF57: 20.2 | AI57: 17.98824882 | AJ57: 20.19575118 | AK57: 16.88449764 | AL57: 21.29950236 | AM57: 15.78074646 | AN57: 22.40325354 | AO57: 19.092 | AQ57: 0 | AR57: 0 | BC57: 53
AD58: 54 | AE58: 25 | AF58: 20.2 | AI58: 17.98824882 | AJ58: 20.19575118 | AK58: 16.88449764 | AL58: 21.29950236 | AM58: 15.78074646 | AN58: 22.40325354 | AO58: 19.092 | AQ58: 0 | AR58: 0 | BC58: 54
AD59: 55 | AE59: 25 | AF59: 20.2 | AI59: 17.98824882 | AJ59: 20.19575118 | AK59: 16.88449764 | AL59: 21.29950236 | AM59: 15.78074646 | AN59: 22.40325354 | AO59: 19.092 | AQ59: 0 | AR59: 0 | BC59: 55
AD60: 56 | AE60: 25 | AF60: 20.2 | AI60: 17.98824882 | AJ60: 20.19575118 | AK60: 16.88449764 | AL60: 21.29950236 | AM60: 15.78074646 | AN60: 22.40325354 | AO60: 19.092 | AQ60: 0 | AR60: 0 | BC60: 56
AD61: 57 | AE61: 25 | AF61: 20.2 | AI61: 17.98824882 | AJ61: 20.19575118 | AK61: 16.88449764 | AL61: 21.29950236 | AM61: 15.78074646 | AN61: 22.40325354 | AO61: 19.092 | AQ61: 0 | AR61: 0 | BC61: 57
AD62: 58 | AE62: 25 | AF62: 20.2 | AI62: 17.98824882 | AJ62: 20.19575118 | AK62: 16.88449764 | AL62: 21.29950236 | AM62: 15.78074646 | AN62: 22.40325354 | AO62: 19.092 | AQ62: 0 | AR62: 0 | BC62: 58
AD63: 59 | AE63: 25 | AF63: 20.2 | AI63: 17.98824882 | AJ63: 20.19575118 | AK63: 16.88449764 | AL63: 21.29950236 | AM63: 15.78074646 | AN63: 22.40325354 | AO63: 19.092 | AQ63: 0 | AR63: 0 | BC63: 59
P64: 1 | Q64: =Minimum -> 17.3 | R64: =Q64+T64 -> 17.65 | S64: =(R64+Q64)/2 -> 17.475 | T64: =Spannweite/AnzahlKlassenHistogramm -> 0.35 | U64: =FREQUENCY(xi,R64) -> 2 | V64: =$U64/Anzahl -> 0.08 | W64: =U64 -> 2 | X64: =W64/Anzahl -> 0.08 | Y64: =X64/T64 -> 0.2285714286 | AD64: 60 | AE64: 25 | AF64: 20.2 | AI64: 17.98824882 | AJ64: 20.19575118 | AK64: 16.88449764 | AL64: 21.29950236 | AM64: 15.78074646 | AN64: 22.40325354 | AO64: 19.092 | AQ64: 0 | AR64: 0 | BC64: 60
P65: 2 | Q65: =IF(AnzahlKlassenHistogramm<P65,Q64,Q64+T65+0.00000001) -> 17.65000001 | R65: =Q65+T65 -> 18.00000001 | S65: =(R65+Q65)/2 -> 17.82500001 | T65: 0.35 | U65: 4 | V65: 0.16 | W65: =U65-U64 -> 2 | X65: 0.08 | Y65: =X65/T65 -> 0.2285714286 | AD65: 61 | AE65: 25 | AF65: 20.2 | AI65: 17.98824882 | AJ65: 20.19575118 | AK65: 16.88449764 | AL65: 21.29950236 | AM65: 15.78074646 | AN65: 22.40325354 | AO65: 19.092 | AQ65: 0 | AR65: 0 | BC65: 61
P66: 3 | Q66: 18.00000002 | R66: =Q66+T66 -> 18.35000002 | S66: =(R66+Q66)/2 -> 18.17500002 | T66: 0.35 | U66: 7 | V66: 0.28 | W66: =U66-U65 -> 3 | X66: 0.12 | Y66: =X66/T66 -> 0.3428571429 | AD66: 62 | AE66: 25 | AF66: 20.2 | AI66: 17.98824882 | AJ66: 20.19575118 | AK66: 16.88449764 | AL66: 21.29950236 | AM66: 15.78074646 | AN66: 22.40325354 | AO66: 19.092 | AQ66: 0 | AR66: 0 | BC66: 62
P67: 4 | Q67: 18.35000003 | R67: 18.70000003 | S67: 18.52500003 | T67: 0.35 | U67: 11 | V67: 0.44 | W67: 4 | X67: 0.16 | Y67: 0.4571428571 | AD67: 63 | AE67: 25 | AF67: 20.2 | AI67: 17.98824882 | AJ67: 20.19575118 | AK67: 16.88449764 | AL67: 21.29950236 | AM67: 15.78074646 | AN67: 22.40325354 | AO67: 19.092 | AQ67: 0 | AR67: 0 | BC67: 63
P68: 5 | Q68: 18.70000004 | R68: 19.05000004 | S68: 18.87500004 | T68: 0.35 | U68: 15 | V68: 0.6 | W68: 4 | X68: 0.16 | Y68: 0.4571428571 | AD68: 64 | AE68: 25 | AF68: 20.2 | AI68: 17.98824882 | AJ68: 20.19575118 | AK68: 16.88449764 | AL68: 21.29950236 | AM68: 15.78074646 | AN68: 22.40325354 | AO68: 19.092 | AQ68: 0 | AR68: 0 | BC68: 64
P69: 6 | Q69: 19.05000005 | R69: 19.40000005 | S69: 19.22500005 | T69: 0.35 | U69: 16 | V69: 0.64 | W69: 1 | X69: 0.04 | Y69: 0.1142857143 | AD69: 65 | AE69: =IF((Anzahl>AD69),AD69,Anzahl) -> 25 | AF69: 20.2 | AH69: =IF(UGW="",#N/A,IF(C69<>"",UGW,#N/A)) ->  | AI69: 17.98824882 | AJ69: 20.19575118 | AK69: 16.88449764 | AL69: 21.29950236 | AM69: 15.78074646 | AN69: 22.40325354 | AO69: 19.092 | AQ69: =IF(AND(C69<>"",C69<UGW),1,0) -> 0 | AR69: =IF(AND(C69<>"",C69>OGW),1,0) -> 0 | BC69: 65 | BD69: =IF(C69="",NA(),SMALL(xi,BE69)) ->  | BF69: =IF(C69="","",NORMSDIST((BD69-fxds)/Standardabweichung)) ->  | BG69: =IF(C69="","",1-BF69) ->  | BH69: =IF(C69="","",SMALL(BG,BE69)) ->  | BI69: =IF(C69="","",(2*BE69-1)*(LN(BH69)+LN(BF69))) ->  | BJ69: =IF(C69="",NA(),NORMSINV((BE69-0.3)/(Anzahl+0.4))) -> 
P70: 7 | Q70: 19.40000006 | R70: 19.75000006 | S70: 19.57500006 | T70: 0.35 | U70: 17 | V70: 0.68 | W70: 1 | X70: 0.04 | Y70: 0.1142857143 | AD70: 66 | AE70: 25 | AF70: 20.2 | AG70: =IF(OGW="",#N/A,IF(C70<>"",OGW,#N/A)) ->  | AI70: =AI69 -> 17.98824882 | AJ70: 20.19575118 | AK70: 16.88449764 | AL70: 21.29950236 | AM70: 15.78074646 | AN70: 22.40325354 | AO70: 19.092 | AQ70: 0 | AR70: 0 | BC70: 66 | BE70: =IF(C70="","",1+BE69) -> 
P71: 8 | Q71: 19.75000007 | R71: 20.10000007 | S71: 19.92500007 | T71: 0.35 | U71: 20 | V71: 0.8 | W71: 3 | X71: 0.12 | Y71: 0.3428571429 | AD71: 67 | AE71: 25 | AF71: 20.2 | AI71: 17.98824882 | AJ71: 20.19575118 | AK71: 16.88449764 | AL71: 21.29950236 | AM71: 15.78074646 | AN71: 22.40325354 | AO71: 19.092 | AQ71: 0 | AR71: 0 | BC71: 67
P72: 9 | Q72: 20.10000008 | R72: 20.45000008 | S72: 20.27500008 | T72: 0.35 | U72: 22 | V72: 0.88 | W72: 2 | X72: 0.08 | Y72: 0.2285714286 | AD72: 68 | AE72: 25 | AF72: =IF(C72<>"",C72,AF71) -> 20.2 | AI72: 17.98824882 | AJ72: 20.19575118 | AK72: 16.88449764 | AL72: 21.29950236 | AM72: 15.78074646 | AN72: 22.40325354 | AO72: 19.092 | AQ72: 0 | AR72: 0 | BC72: 68
P73: 10 | Q73: 20.45000009 | R73: 20.80000009 | S73: 20.62500009 | T73: 0.35 | U73: 23 | V73: 0.92 | W73: 1 | X73: 0.04 | Y73: 0.1142857143 | AD73: 69 | AE73: 25 | AF73: 20.2 | AI73: 17.98824882 | AJ73: 20.19575118 | AK73: 16.88449764 | AL73: 21.29950236 | AM73: 15.78074646 | AN73: 22.40325354 | AO73: 19.092 | AQ73: 0 | AR73: 0 | BC73: 69
P74: 11 | Q74: 20.8000001 | R74: 21.1500001 | S74: 20.9750001 | T74: 0.35 | U74: 24 | V74: 0.96 | W74: 1 | X74: 0.04 | Y74: 0.1142857143 | AD74: 70 | AE74: 25 | AF74: 20.2 | AI74: 17.98824882 | AJ74: 20.19575118 | AK74: 16.88449764 | AL74: 21.29950236 | AM74: 15.78074646 | AN74: 22.40325354 | AO74: 19.092 | AQ74: 0 | AR74: 0 | BC74: 70
P75: 12 | Q75: 21.15000011 | R75: 21.50000011 | S75: 21.32500011 | T75: 0.35 | U75: 25 | V75: 1 | W75: 1 | X75: 0.04 | Y75: 0.1142857143 | AD75: 71 | AE75: 25 | AF75: 20.2 | AI75: 17.98824882 | AJ75: 20.19575118 | AK75: 16.88449764 | AL75: 21.29950236 | AM75: 15.78074646 | AN75: 22.40325354 | AO75: 19.092 | AQ75: 0 | AR75: 0 | BC75: 71
P76: 13 | Q76: 21.15000011 | R76: 21.50000011 | S76: 21.32500011 | T76: 0.35 | U76: 25 | V76: 1 | W76: 0 | X76: 0 | Y76: 0 | AD76: 72 | AE76: 25 | AF76: 20.2 | AI76: 17.98824882 | AJ76: 20.19575118 | AK76: 16.88449764 | AL76: 21.29950236 | AM76: 15.78074646 | AN76: 22.40325354 | AO76: 19.092 | AQ76: 0 | AR76: 0 | BC76: 72
P77: 14 | Q77: 21.15000011 | R77: 21.50000011 | S77: 21.32500011 | T77: 0.35 | U77: 25 | V77: 1 | W77: 0 | X77: 0 | Y77: 0 | AD77: 73 | AE77: 25 | AF77: 20.2 | AI77: 17.98824882 | AJ77: 20.19575118 | AK77: 16.88449764 | AL77: 21.29950236 | AM77: 15.78074646 | AN77: 22.40325354 | AO77: 19.092 | AQ77: 0 | AR77: 0 | BC77: 73
P78: 15 | Q78: 21.15000011 | R78: 21.50000011 | S78: 21.32500011 | T78: 0.35 | U78: 25 | V78: 1 | W78: 0 | X78: 0 | Y78: 0 | AD78: 74 | AE78: 25 | AF78: 20.2 | AI78: 17.98824882 | AJ78: 20.19575118 | AK78: 16.88449764 | AL78: 21.29950236 | AM78: 15.78074646 | AN78: 22.40325354 | AO78: 19.092 | AQ78: 0 | AR78: 0 | BC78: 74
P79: 16 | Q79: 21.15000011 | R79: 21.50000011 | S79: 21.32500011 | T79: 0.35 | U79: 25 | V79: 1 | W79: 0 | X79: 0 | Y79: 0 | AD79: 75 | AE79: 25 | AF79: 20.2 | AI79: 17.98824882 | AJ79: 20.19575118 | AK79: 16.88449764 | AL79: 21.29950236 | AM79: 15.78074646 | AN79: 22.40325354 | AO79: 19.092 | AQ79: 0 | AR79: 0 | BC79: 75
P80: 17 | Q80: 21.15000011 | R80: 21.50000011 | S80: 21.32500011 | T80: 0.35 | U80: 25 | V80: 1 | W80: 0 | X80: 0 | Y80: 0 | AD80: 76 | AE80: 25 | AF80: 20.2 | AI80: 17.98824882 | AJ80: 20.19575118 | AK80: 16.88449764 | AL80: 21.29950236 | AM80: 15.78074646 | AN80: 22.40325354 | AO80: 19.092 | AQ80: 0 | AR80: 0 | BC80: 76
P81: 18 | Q81: 21.15000011 | R81: 21.50000011 | S81: 21.32500011 | T81: 0.35 | U81: 25 | V81: 1 | W81: 0 | X81: 0 | Y81: 0 | AD81: 77 | AE81: 25 | AF81: 20.2 | AI81: 17.98824882 | AJ81: 20.19575118 | AK81: 16.88449764 | AL81: 21.29950236 | AM81: 15.78074646 | AN81: 22.40325354 | AO81: 19.092 | AQ81: 0 | AR81: 0 | BC81: 77
P82: 19 | Q82: 21.15000011 | R82: 21.50000011 | S82: 21.32500011 | T82: 0.35 | U82: 25 | V82: 1 | W82: 0 | X82: 0 | Y82: 0 | AD82: 78 | AE82: 25 | AF82: 20.2 | AI82: 17.98824882 | AJ82: 20.19575118 | AK82: 16.88449764 | AL82: 21.29950236 | AM82: 15.78074646 | AN82: 22.40325354 | AO82: 19.092 | AQ82: 0 | AR82: 0 | BC82: 78
P83: 20 | Q83: 21.15000011 | R83: 21.50000011 | S83: 21.32500011 | T83: 0.35 | U83: 25 | V83: 1 | W83: 0 | X83: 0 | Y83: 0 | AD83: 79 | AE83: 25 | AF83: 20.2 | AI83: 17.98824882 | AJ83: 20.19575118 | AK83: 16.88449764 | AL83: 21.29950236 | AM83: 15.78074646 | AN83: 22.40325354 | AO83: 19.092 | AQ83: 0 | AR83: 0 | BC83: 79
AD84: 80 | AE84: 25 | AF84: 20.2 | AI84: 17.98824882 | AJ84: 20.19575118 | AK84: 16.88449764 | AL84: 21.29950236 | AM84: 15.78074646 | AN84: 22.40325354 | AO84: 19.092 | AQ84: 0 | AR84: 0 | BC84: 80
AD85: 81 | AE85: 25 | AF85: 20.2 | AI85: 17.98824882 | AJ85: 20.19575118 | AK85: 16.88449764 | AL85: 21.29950236 | AM85: 15.78074646 | AN85: 22.40325354 | AO85: 19.092 | AQ85: 0 | AR85: 0 | BC85: 81
AD86: 82 | AE86: 25 | AF86: 20.2 | AI86: =AI85 -> 17.98824882 | AJ86: 20.19575118 | AK86: 16.88449764 | AL86: 21.29950236 | AM86: 15.78074646 | AN86: 22.40325354 | AO86: 19.092 | AQ86: 0 | AR86: 0 | BC86: 82
Q87: 1.1 | R87: =R88-(Q87*Standardabweichung) -> 11.80724221 | S87: =NORMDIST(R87,fxds,Standardabweichung,0) -> 1.256333873e-10 | V87: =IF(OGW<>"",OGW,#N/A) -> 23 | W87: =MAX(Häufigkeitsdichte)*1.05 -> 0.48 | AD87: 83 | AE87: 25 | AF87: 20.2 | AI87: 17.98824882 | AJ87: 20.19575118 | AK87: 16.88449764 | AL87: 21.29950236 | AM87: 15.78074646 | AN87: 22.40325354 | AO87: 19.092 | AQ87: 0 | AR87: 0 | BC87: 83
Q88: 1 | R88: 13.02136851 | S88: 9.757416563e-08 | V88: =IF(UGW<>"",UGW,#N/A) -> 16 | W88: 0.48 | AD88: 84 | AE88: 25 | AF88: 20.2 | AI88: 17.98824882 | AJ88: 20.19575118 | AK88: 16.88449764 | AL88: 21.29950236 | AM88: 15.78074646 | AN88: 22.40325354 | AO88: 19.092 | AQ88: 0 | AR88: 0 | BC88: 84
Q89: 0.9 | R89: 14.12511969 | S89: 1.448129017e-05 | V89: =fxds+3*Standardabweichung -> 22.40325354 | W89: 0.48 | AD89: 85 | AE89: 25 | AF89: 20.2 | AI89: 17.98824882 | AJ89: 20.19575118 | AK89: 16.88449764 | AL89: 21.29950236 | AM89: 15.78074646 | AN89: 22.40325354 | AO89: 19.092 | AQ89: 0 | AR89: 0 | BC89: 85
Q90: 0.8 | R90: 15.11849575 | S90: 0.0005543839421 | V90: =fxds-3*Standardabweichung -> 15.78074646 | W90: 0.48 | AD90: 86 | AE90: 25 | AF90: 20.2 | AI90: 17.98824882 | AJ90: 20.19575118 | AK90: 16.88449764 | AL90: 21.29950236 | AM90: 15.78074646 | AN90: 22.40325354 | AO90: 19.092 | AQ90: 0 | AR90: 0 | BC90: 86
Q91: 0.7 | R91: 16.0014967 | S91: 0.007171409398 | V91: =fxds -> 19.092 | W91: 0.48 | AD91: 87 | AE91: 25 | AF91: 20.2 | AI91: 17.98824882 | AJ91: 20.19575118 | AK91: 16.88449764 | AL91: 21.29950236 | AM91: 15.78074646 | AN91: 22.40325354 | AO91: 19.092 | AQ91: 0 | AR91: 0 | BC91: 87
Q92: 0.6 | R92: 16.77412252 | S92: 0.03984919499 | V92: =Sollwert -> 19 | W92: 0.48 | AD92: 88 | AE92: 25 | AF92: 20.2 | AI92: 17.98824882 | AJ92: 20.19575118 | AK92: 16.88449764 | AL92: 21.29950236 | AM92: 15.78074646 | AN92: 22.40325354 | AO92: 19.092 | AQ92: 0 | AR92: 0 | BC92: 88
Q93: 0.5 | R93: 17.43637323 | S93: 0.1173431096 | AD93: 89 | AE93: 25 | AF93: 20.2 | AI93: 17.98824882 | AJ93: 20.19575118 | AK93: 16.88449764 | AL93: 21.29950236 | AM93: 15.78074646 | AN93: 22.40325354 | AO93: 19.092 | AQ93: 0 | AR93: 0 | BC93: 89
Q94: 0.4 | R94: 17.98824882 | S94: 0.2192257902 | AD94: 90 | AE94: 25 | AF94: 20.2 | AI94: 17.98824882 | AJ94: 20.19575118 | AK94: 16.88449764 | AL94: 21.29950236 | AM94: 15.78074646 | AN94: 22.40325354 | AO94: 19.092 | AQ94: 0 | AR94: 0 | BC94: 90
Q95: 0.3 | R95: 18.42974929 | S95: 0.3019019223 | AD95: 91 | AE95: 25 | AF95: 20.2 | AI95: 17.98824882 | AJ95: 20.19575118 | AK95: 16.88449764 | AL95: 21.29950236 | AM95: 15.78074646 | AN95: 22.40325354 | AO95: 19.092 | AQ95: 0 | AR95: 0 | BC95: 91
Q96: 0.2 | R96: 18.76087465 | S96: 0.3455378553 | AD96: 92 | AE96: 25 | AF96: 20.2 | AI96: 17.98824882 | AJ96: 20.19575118 | AK96: 16.88449764 | AL96: 21.29950236 | AM96: 15.78074646 | AN96: 22.40325354 | AO96: 19.092 | AQ96: 0 | AR96: 0 | BC96: 92
Q97: 0.1 | R97: 18.98162488 | S97: 0.3596395227 | AD97: 93 | AE97: 25 | AF97: 20.2 | AI97: 17.98824882 | AJ97: 20.19575118 | AK97: 16.88449764 | AL97: 21.29950236 | AM97: 15.78074646 | AN97: 22.40325354 | AO97: 19.092 | AQ97: 0 | AR97: 0 | BC97: 93
Q98: 0 | R98: =fxds -> 19.092 | S98: 0.3614422233 | AD98: 94 | AE98: 25 | AF98: 20.2 | AI98: 17.98824882 | AJ98: 20.19575118 | AK98: 16.88449764 | AL98: 21.29950236 | AM98: 15.78074646 | AN98: 22.40325354 | AO98: 19.092 | AQ98: 0 | AR98: 0 | BC98: 94
Q99: 0.1 | R99: =R98+(Q99*Standardabweichung) -> 19.20237512 | S99: 0.3596395227 | AD99: 95 | AE99: 25 | AF99: 20.2 | AI99: 17.98824882 | AJ99: 20.19575118 | AK99: 16.88449764 | AL99: 21.29950236 | AM99: 15.78074646 | AN99: 22.40325354 | AO99: 19.092 | AQ99: 0 | AR99: 0 | BC99: 95
Q100: 0.2 | R100: 19.42312535 | S100: 0.3455378553 | AD100: 96 | AE100: 25 | AF100: 20.2 | AI100: 17.98824882 | AJ100: 20.19575118 | AK100: 16.88449764 | AL100: 21.29950236 | AM100: 15.78074646 | AN100: 22.40325354 | AO100: 19.092 | AQ100: 0 | AR100: 0 | BC100: 96
Q101: 0.3 | R101: 19.75425071 | S101: 0.3019019223 | AD101: 97 | AE101: =IF((Anzahl>AD101),AD101,Anzahl) -> 25 | AF101: 20.2 | AH101: =IF(UGW="",#N/A,IF(C101<>"",UGW,#N/A)) ->  | AI101: 17.98824882 | AJ101: 20.19575118 | AK101: 16.88449764 | AL101: 21.29950236 | AM101: 15.78074646 | AN101: 22.40325354 | AO101: 19.092 | AQ101: =IF(AND(C101<>"",C101<UGW),1,0) -> 0 | AR101: =IF(AND(C101<>"",C101>OGW),1,0) -> 0 | BC101: 97 | BD101: =IF(C101="",NA(),SMALL(xi,BE101)) ->  | BF101: =IF(C101="","",NORMSDIST((BD101-fxds)/Standardabweichung)) ->  | BG101: =IF(C101="","",1-BF101) ->  | BH101: =IF(C101="","",SMALL(BG,BE101)) ->  | BI101: =IF(C101="","",(2*BE101-1)*(LN(BH101)+LN(BF101))) ->  | BJ101: =IF(C101="",NA(),NORMSINV((BE101-0.3)/(Anzahl+0.4))) -> 
Q102: 0.4 | R102: 20.19575118 | S102: 0.2192257902 | AD102: 98 | AE102: 25 | AF102: 20.2 | AG102: =IF(OGW="",#N/A,IF(C102<>"",OGW,#N/A)) ->  | AI102: =AI101 -> 17.98824882 | AJ102: 20.19575118 | AK102: 16.88449764 | AL102: 21.29950236 | AM102: 15.78074646 | AN102: 22.40325354 | AO102: 19.092 | AQ102: 0 | AR102: 0 | BC102: 98 | BE102: =IF(C102="","",1+BE101) -> 
Q103: 0.5 | R103: 20.74762677 | S103: 0.1173431096 | AD103: 99 | AE103: 25 | AF103: 20.2 | AI103: 17.98824882 | AJ103: 20.19575118 | AK103: 16.88449764 | AL103: 21.29950236 | AM103: 15.78074646 | AN103: 22.40325354 | AO103: 19.092 | AQ103: 0 | AR103: 0 | BC103: 99
Q104: 0.6 | R104: 21.40987748 | S104: 0.03984919499 | AD104: 100 | AE104: 25 | AF104: 20.2 | AI104: 17.98824882 | AJ104: 20.19575118 | AK104: 16.88449764 | AL104: 21.29950236 | AM104: 15.78074646 | AN104: 22.40325354 | AO104: 19.092 | AQ104: 0 | AR104: 0 | BC104: 100
Q105: 0.7 | R105: 22.1825033 | S105: 0.007171409398 | AD105: 101 | AE105: 25 | AF105: 20.2 | AI105: 17.98824882 | AJ105: 20.19575118 | AK105: 16.88449764 | AL105: 21.29950236 | AM105: 15.78074646 | AN105: 22.40325354 | AO105: 19.092 | AQ105: 0 | AR105: 0 | BC105: 101
Q106: 0.8 | R106: 23.06550425 | S106: 0.0005543839421 | AD106: 102 | AE106: 25 | AF106: 20.2 | AI106: 17.98824882 | AJ106: 20.19575118 | AK106: 16.88449764 | AL106: 21.29950236 | AM106: 15.78074646 | AN106: 22.40325354 | AO106: 19.092 | AQ106: 0 | AR106: 0 | BC106: 102
Q107: 0.9 | R107: 24.05888031 | S107: 1.448129017e-05 | AD107: 103 | AE107: 25 | AF107: 20.2 | AI107: 17.98824882 | AJ107: 20.19575118 | AK107: 16.88449764 | AL107: 21.29950236 | AM107: 15.78074646 | AN107: 22.40325354 | AO107: 19.092 | AQ107: 0 | AR107: 0 | BC107: 103
Q108: 1 | R108: 25.16263149 | S108: 9.757416563e-08 | AD108: 104 | AE108: 25 | AF108: 20.2 | AI108: 17.98824882 | AJ108: 20.19575118 | AK108: 16.88449764 | AL108: 21.29950236 | AM108: 15.78074646 | AN108: 22.40325354 | AO108: 19.092 | AQ108: 0 | AR108: 0 | BC108: 104
Q109: 1.1 | R109: 26.37675779 | S109: 1.256333873e-10 | AD109: 105 | AE109: 25 | AF109: 20.2 | AI109: 17.98824882 | AJ109: 20.19575118 | AK109: 16.88449764 | AL109: 21.29950236 | AM109: 15.78074646 | AN109: 22.40325354 | AO109: 19.092 | AQ109: 0 | AR109: 0 | BC109: 105
AD110: 106 | AE110: 25 | AF110: 20.2 | AI110: 17.98824882 | AJ110: 20.19575118 | AK110: 16.88449764 | AL110: 21.29950236 | AM110: 15.78074646 | AN110: 22.40325354 | AO110: 19.092 | AQ110: 0 | AR110: 0 | BC110: 106
AD111: 107 | AE111: 25 | AF111: 20.2 | AI111: 17.98824882 | AJ111: 20.19575118 | AK111: 16.88449764 | AL111: 21.29950236 | AM111: 15.78074646 | AN111: 22.40325354 | AO111: 19.092 | AQ111: 0 | AR111: 0 | BC111: 107
AD112: 108 | AE112: 25 | AF112: 20.2 | AI112: 17.98824882 | AJ112: 20.19575118 | AK112: 16.88449764 | AL112: 21.29950236 | AM112: 15.78074646 | AN112: 22.40325354 | AO112: 19.092 | AQ112: 0 | AR112: 0 | BC112: 108
AD113: 109 | AE113: 25 | AF113: 20.2 | AI113: 17.98824882 | AJ113: 20.19575118 | AK113: 16.88449764 | AL113: 21.29950236 | AM113: 15.78074646 | AN113: 22.40325354 | AO113: 19.092 | AQ113: 0 | AR113: 0 | BC113: 109
AD114: 110 | AE114: 25 | AF114: 20.2 | AI114: 17.98824882 | AJ114: 20.19575118 | AK114: 16.88449764 | AL114: 21.29950236 | AM114: 15.78074646 | AN114: 22.40325354 | AO114: 19.092 | AQ114: 0 | AR114: 0 | BC114: 110
AD115: 111 | AE115: 25 | AF115: 20.2 | AI115: 17.98824882 | AJ115: 20.19575118 | AK115: 16.88449764 | AL115: 21.29950236 | AM115: 15.78074646 | AN115: 22.40325354 | AO115: 19.092 | AQ115: 0 | AR115: 0 | BC115: 111
AD116: 112 | AE116: 25 | AF116: 20.2 | AI116: 17.98824882 | AJ116: 20.19575118 | AK116: 16.88449764 | AL116: 21.29950236 | AM116: 15.78074646 | AN116: 22.40325354 | AO116: 19.092 | AQ116: 0 | AR116: 0 | BC116: 112
AD117: 113 | AE117: 25 | AF117: 20.2 | AI117: 17.98824882 | AJ117: 20.19575118 | AK117: 16.88449764 | AL117: 21.29950236 | AM117: 15.78074646 | AN117: 22.40325354 | AO117: 19.092 | AQ117: 0 | AR117: 0 | BC117: 113
AD118: 114 | AE118: 25 | AF118: 20.2 | AI118: =AI117 -> 17.98824882 | AJ118: 20.19575118 | AK118: 16.88449764 | AL118: 21.29950236 | AM118: 15.78074646 | AN118: 22.40325354 | AO118: 19.092 | AQ118: 0 | AR118: 0 | BC118: 114
AD119: 115 | AE119: 25 | AF119: 20.2 | AI119: 17.98824882 | AJ119: 20.19575118 | AK119: 16.88449764 | AL119: 21.29950236 | AM119: 15.78074646 | AN119: 22.40325354 | AO119: 19.092 | AQ119: 0 | AR119: 0 | BC119: 115
AD120: 116 | AE120: 25 | AF120: 20.2 | AI120: 17.98824882 | AJ120: 20.19575118 | AK120: 16.88449764 | AL120: 21.29950236 | AM120: 15.78074646 | AN120: 22.40325354 | AO120: 19.092 | AQ120: 0 | AR120: 0 | BC120: 116
AD121: 117 | AE121: 25 | AF121: 20.2 | AI121: 17.98824882 | AJ121: 20.19575118 | AK121: 16.88449764 | AL121: 21.29950236 | AM121: 15.78074646 | AN121: 22.40325354 | AO121: 19.092 | AQ121: 0 | AR121: 0 | BC121: 117
AD122: 118 | AE122: 25 | AF122: 20.2 | AI122: 17.98824882 | AJ122: 20.19575118 | AK122: 16.88449764 | AL122: 21.29950236 | AM122: 15.78074646 | AN122: 22.40325354 | AO122: 19.092 | AQ122: 0 | AR122: 0 | BC122: 118
AD123: 119 | AE123: 25 | AF123: 20.2 | AI123: 17.98824882 | AJ123: 20.19575118 | AK123: 16.88449764 | AL123: 21.29950236 | AM123: 15.78074646 | AN123: 22.40325354 | AO123: 19.092 | AQ123: 0 | AR123: 0 | BC123: 119
AD124: 120 | AE124: 25 | AF124: 20.2 | AI124: 17.98824882 | AJ124: 20.19575118 | AK124: 16.88449764 | AL124: 21.29950236 | AM124: 15.78074646 | AN124: 22.40325354 | AO124: 19.092 | AQ124: 0 | AR124: 0 | BC124: 120
AD125: 121 | AE125: 25 | AF125: 20.2 | AI125: 17.98824882 | AJ125: 20.19575118 | AK125: 16.88449764 | AL125: 21.29950236 | AM125: 15.78074646 | AN125: 22.40325354 | AO125: 19.092 | AQ125: 0 | AR125: 0 | BC125: 121
AD126: 122 | AE126: 25 | AF126: 20.2 | AI126: 17.98824882 | AJ126: 20.19575118 | AK126: 16.88449764 | AL126: 21.29950236 | AM126: 15.78074646 | AN126: 22.40325354 | AO126: 19.092 | AQ126: 0 | AR126: 0 | BC126: 122
AD127: 123 | AE127: 25 | AF127: 20.2 | AI127: 17.98824882 | AJ127: 20.19575118 | AK127: 16.88449764 | AL127: 21.29950236 | AM127: 15.78074646 | AN127: 22.40325354 | AO127: 19.092 | AQ127: 0 | AR127: 0 | BC127: 123
AD128: 124 | AE128: 25 | AF128: 20.2 | AI128: 17.98824882 | AJ128: 20.19575118 | AK128: 16.88449764 | AL128: 21.29950236 | AM128: 15.78074646 | AN128: 22.40325354 | AO128: 19.092 | AQ128: 0 | AR128: 0 | BC128: 124
AD129: 125 | AE129: 25 | AF129: 20.2 | AI129: 17.98824882 | AJ129: 20.19575118 | AK129: 16.88449764 | AL129: 21.29950236 | AM129: 15.78074646 | AN129: 22.40325354 | AO129: 19.092 | AQ129: 0 | AR129: 0 | BC129: 125
AD130: 126 | AE130: 25 | AF130: 20.2 | AI130: 17.98824882 | AJ130: 20.19575118 | AK130: 16.88449764 | AL130: 21.29950236 | AM130: 15.78074646 | AN130: 22.40325354 | AO130: 19.092 | AQ130: 0 | AR130: 0 | BC130: 126
AD131: 127 | AE131: 25 | AF131: 20.2 | AI131: 17.98824882 | AJ131: 20.19575118 | AK131: 16.88449764 | AL131: 21.29950236 | AM131: 15.78074646 | AN131: 22.40325354 | AO131: 19.092 | AQ131: 0 | AR131: 0 | BC131: 127
AD132: 128 | AE132: 25 | AF132: 20.2 | AI132: 17.98824882 | AJ132: 20.19575118 | AK132: 16.88449764 | AL132: 21.29950236 | AM132: 15.78074646 | AN132: 22.40325354 | AO132: 19.092 | AQ132: 0 | AR132: 0 | BC132: 128
AD133: 129 | AE133: =IF((Anzahl>AD133),AD133,Anzahl) -> 25 | AF133: 20.2 | AH133: =IF(UGW="",#N/A,IF(C133<>"",UGW,#N/A)) ->  | AI133: 17.98824882 | AJ133: 20.19575118 | AK133: 16.88449764 | AL133: 21.29950236 | AM133: 15.78074646 | AN133: 22.40325354 | AO133: 19.092 | AQ133: =IF(AND(C133<>"",C133<UGW),1,0) -> 0 | AR133: =IF(AND(C133<>"",C133>OGW),1,0) -> 0 | BC133: 129 | BD133: =IF(C133="",NA(),SMALL(xi,BE133)) ->  | BF133: =IF(C133="","",NORMSDIST((BD133-fxds)/Standardabweichung)) ->  | BG133: =IF(C133="","",1-BF133) ->  | BH133: =IF(C133="","",SMALL(BG,BE133)) ->  | BI133: =IF(C133="","",(2*BE133-1)*(LN(BH133)+LN(BF133))) ->  | BJ133: =IF(C133="",NA(),NORMSINV((BE133-0.3)/(Anzahl+0.4))) -> 
AD134: 130 | AE134: 25 | AF134: 20.2 | AG134: =IF(OGW="",#N/A,IF(C134<>"",OGW,#N/A)) ->  | AI134: =AI133 -> 17.98824882 | AJ134: 20.19575118 | AK134: 16.88449764 | AL134: 21.29950236 | AM134: 15.78074646 | AN134: 22.40325354 | AO134: 19.092 | AQ134: 0 | AR134: 0 | BC134: 130 | BE134: =IF(C134="","",1+BE133) -> 
AD135: 131 | AE135: 25 | AF135: 20.2 | AI135: 17.98824882 | AJ135: 20.19575118 | AK135: 16.88449764 | AL135: 21.29950236 | AM135: 15.78074646 | AN135: 22.40325354 | AO135: 19.092 | AQ135: 0 | AR135: 0 | BC135: 131
AD136: 132 | AE136: 25 | AF136: =IF(C136<>"",C136,AF135) -> 20.2 | AI136: 17.98824882 | AJ136: 20.19575118 | AK136: 16.88449764 | AL136: 21.29950236 | AM136: 15.78074646 | AN136: 22.40325354 | AO136: 19.092 | AQ136: 0 | AR136: 0 | BC136: 132
AD137: 133 | AE137: 25 | AF137: 20.2 | AI137: 17.98824882 | AJ137: 20.19575118 | AK137: 16.88449764 | AL137: 21.29950236 | AM137: 15.78074646 | AN137: 22.40325354 | AO137: 19.092 | AQ137: 0 | AR137: 0 | BC137: 133
AD138: 134 | AE138: 25 | AF138: 20.2 | AI138: 17.98824882 | AJ138: 20.19575118 | AK138: 16.88449764 | AL138: 21.29950236 | AM138: 15.78074646 | AN138: 22.40325354 | AO138: 19.092 | AQ138: 0 | AR138: 0 | BC138: 134
AD139: 135 | AE139: 25 | AF139: 20.2 | AI139: 17.98824882 | AJ139: 20.19575118 | AK139: 16.88449764 | AL139: 21.29950236 | AM139: 15.78074646 | AN139: 22.40325354 | AO139: 19.092 | AQ139: 0 | AR139: 0 | BC139: 135
AD140: 136 | AE140: 25 | AF140: 20.2 | AI140: 17.98824882 | AJ140: 20.19575118 | AK140: 16.88449764 | AL140: 21.29950236 | AM140: 15.78074646 | AN140: 22.40325354 | AO140: 19.092 | AQ140: 0 | AR140: 0 | BC140: 136
AD141: 137 | AE141: 25 | AF141: 20.2 | AI141: 17.98824882 | AJ141: 20.19575118 | AK141: 16.88449764 | AL141: 21.29950236 | AM141: 15.78074646 | AN141: 22.40325354 | AO141: 19.092 | AQ141: 0 | AR141: 0 | BC141: 137
AD142: 138 | AE142: 25 | AF142: 20.2 | AI142: 17.98824882 | AJ142: 20.19575118 | AK142: 16.88449764 | AL142: 21.29950236 | AM142: 15.78074646 | AN142: 22.40325354 | AO142: 19.092 | AQ142: 0 | AR142: 0 | BC142: 138
AD143: 139 | AE143: 25 | AF143: 20.2 | AI143: 17.98824882 | AJ143: 20.19575118 | AK143: 16.88449764 | AL143: 21.29950236 | AM143: 15.78074646 | AN143: 22.40325354 | AO143: 19.092 | AQ143: 0 | AR143: 0 | BC143: 139
AD144: 140 | AE144: 25 | AF144: 20.2 | AI144: 17.98824882 | AJ144: 20.19575118 | AK144: 16.88449764 | AL144: 21.29950236 | AM144: 15.78074646 | AN144: 22.40325354 | AO144: 19.092 | AQ144: 0 | AR144: 0 | BC144: 140
AD145: 141 | AE145: 25 | AF145: 20.2 | AI145: 17.98824882 | AJ145: 20.19575118 | AK145: 16.88449764 | AL145: 21.29950236 | AM145: 15.78074646 | AN145: 22.40325354 | AO145: 19.092 | AQ145: 0 | AR145: 0 | BC145: 141
AD146: 142 | AE146: 25 | AF146: 20.2 | AI146: 17.98824882 | AJ146: 20.19575118 | AK146: 16.88449764 | AL146: 21.29950236 | AM146: 15.78074646 | AN146: 22.40325354 | AO146: 19.092 | AQ146: 0 | AR146: 0 | BC146: 142
AD147: 143 | AE147: 25 | AF147: 20.2 | AI147: 17.98824882 | AJ147: 20.19575118 | AK147: 16.88449764 | AL147: 21.29950236 | AM147: 15.78074646 | AN147: 22.40325354 | AO147: 19.092 | AQ147: 0 | AR147: 0 | BC147: 143
AD148: 144 | AE148: 25 | AF148: 20.2 | AI148: 17.98824882 | AJ148: 20.19575118 | AK148: 16.88449764 | AL148: 21.29950236 | AM148: 15.78074646 | AN148: 22.40325354 | AO148: 19.092 | AQ148: 0 | AR148: 0 | BC148: 144
AD149: 145 | AE149: 25 | AF149: 20.2 | AI149: 17.98824882 | AJ149: 20.19575118 | AK149: 16.88449764 | AL149: 21.29950236 | AM149: 15.78074646 | AN149: 22.40325354 | AO149: 19.092 | AQ149: 0 | AR149: 0 | BC149: 145
AD150: 146 | AE150: 25 | AF150: 20.2 | AI150: =AI149 -> 17.98824882 | AJ150: 20.19575118 | AK150: 16.88449764 | AL150: 21.29950236 | AM150: 15.78074646 | AN150: 22.40325354 | AO150: 19.092 | AQ150: 0 | AR150: 0 | BC150: 146
AD151: 147 | AE151: 25 | AF151: 20.2 | AI151: 17.98824882 | AJ151: 20.19575118 | AK151: 16.88449764 | AL151: 21.29950236 | AM151: 15.78074646 | AN151: 22.40325354 | AO151: 19.092 | AQ151: 0 | AR151: 0 | BC151: 147
AD152: 148 | AE152: 25 | AF152: 20.2 | AI152: 17.98824882 | AJ152: 20.19575118 | AK152: 16.88449764 | AL152: 21.29950236 | AM152: 15.78074646 | AN152: 22.40325354 | AO152: 19.092 | AQ152: 0 | AR152: 0 | BC152: 148
AD153: 149 | AE153: 25 | AF153: 20.2 | AI153: 17.98824882 | AJ153: 20.19575118 | AK153: 16.88449764 | AL153: 21.29950236 | AM153: 15.78074646 | AN153: 22.40325354 | AO153: 19.092 | AQ153: 0 | AR153: 0 | BC153: 149
AD154: 150 | AE154: 25 | AF154: 20.2 | AI154: 17.98824882 | AJ154: 20.19575118 | AK154: 16.88449764 | AL154: 21.29950236 | AM154: 15.78074646 | AN154: 22.40325354 | AO154: 19.092 | AQ154: 0 | AR154: 0 | BC154: 150
AD155: 151 | AE155: 25 | AF155: 20.2 | AI155: 17.98824882 | AJ155: 20.19575118 | AK155: 16.88449764 | AL155: 21.29950236 | AM155: 15.78074646 | AN155: 22.40325354 | AO155: 19.092 | AQ155: 0 | AR155: 0 | BC155: 151
AD156: 152 | AE156: 25 | AF156: 20.2 | AI156: 17.98824882 | AJ156: 20.19575118 | AK156: 16.88449764 | AL156: 21.29950236 | AM156: 15.78074646 | AN156: 22.40325354 | AO156: 19.092 | AQ156: 0 | AR156: 0 | BC156: 152
AD157: 153 | AE157: 25 | AF157: 20.2 | AI157: 17.98824882 | AJ157: 20.19575118 | AK157: 16.88449764 | AL157: 21.29950236 | AM157: 15.78074646 | AN157: 22.40325354 | AO157: 19.092 | AQ157: 0 | AR157: 0 | BC157: 153
AD158: 154 | AE158: 25 | AF158: 20.2 | AI158: 17.98824882 | AJ158: 20.19575118 | AK158: 16.88449764 | AL158: 21.29950236 | AM158: 15.78074646 | AN158: 22.40325354 | AO158: 19.092 | AQ158: 0 | AR158: 0 | BC158: 154
AD159: 155 | AE159: 25 | AF159: 20.2 | AI159: 17.98824882 | AJ159: 20.19575118 | AK159: 16.88449764 | AL159: 21.29950236 | AM159: 15.78074646 | AN159: 22.40325354 | AO159: 19.092 | AQ159: 0 | AR159: 0 | BC159: 155
AD160: 156 | AE160: 25 | AF160: 20.2 | AI160: 17.98824882 | AJ160: 20.19575118 | AK160: 16.88449764 | AL160: 21.29950236 | AM160: 15.78074646 | AN160: 22.40325354 | AO160: 19.092 | AQ160: 0 | AR160: 0 | BC160: 156
AD161: 157 | AE161: 25 | AF161: 20.2 | AI161: 17.98824882 | AJ161: 20.19575118 | AK161: 16.88449764 | AL161: 21.29950236 | AM161: 15.78074646 | AN161: 22.40325354 | AO161: 19.092 | AQ161: 0 | AR161: 0 | BC161: 157
AD162: 158 | AE162: 25 | AF162: 20.2 | AI162: 17.98824882 | AJ162: 20.19575118 | AK162: 16.88449764 | AL162: 21.29950236 | AM162: 15.78074646 | AN162: 22.40325354 | AO162: 19.092 | AQ162: 0 | AR162: 0 | BC162: 158
AD163: 159 | AE163: 25 | AF163: 20.2 | AI163: 17.98824882 | AJ163: 20.19575118 | AK163: 16.88449764 | AL163: 21.29950236 | AM163: 15.78074646 | AN163: 22.40325354 | AO163: 19.092 | AQ163: 0 | AR163: 0 | BC163: 159
AD164: 160 | AE164: 25 | AF164: 20.2 | AI164: 17.98824882 | AJ164: 20.19575118 | AK164: 16.88449764 | AL164: 21.29950236 | AM164: 15.78074646 | AN164: 22.40325354 | AO164: 19.092 | AQ164: 0 | AR164: 0 | BC164: 160
AD165: 161 | AE165: =IF((Anzahl>AD165),AD165,Anzahl) -> 25 | AF165: 20.2 | AH165: =IF(UGW="",#N/A,IF(C165<>"",UGW,#N/A)) ->  | AI165: 17.98824882 | AJ165: 20.19575118 | AK165: 16.88449764 | AL165: 21.29950236 | AM165: 15.78074646 | AN165: 22.40325354 | AO165: 19.092 | AQ165: =IF(AND(C165<>"",C165<UGW),1,0) -> 0 | AR165: =IF(AND(C165<>"",C165>OGW),1,0) -> 0 | BC165: 161 | BD165: =IF(C165="",NA(),SMALL(xi,BE165)) ->  | BF165: =IF(C165="","",NORMSDIST((BD165-fxds)/Standardabweichung)) ->  | BG165: =IF(C165="","",1-BF165) ->  | BH165: =IF(C165="","",SMALL(BG,BE165)) ->  | BI165: =IF(C165="","",(2*BE165-1)*(LN(BH165)+LN(BF165))) ->  | BJ165: =IF(C165="",NA(),NORMSINV((BE165-0.3)/(Anzahl+0.4))) -> 
AD166: 162 | AE166: 25 | AF166: 20.2 | AG166: =IF(OGW="",#N/A,IF(C166<>"",OGW,#N/A)) ->  | AI166: =AI165 -> 17.98824882 | AJ166: 20.19575118 | AK166: 16.88449764 | AL166: 21.29950236 | AM166: 15.78074646 | AN166: 22.40325354 | AO166: 19.092 | AQ166: 0 | AR166: 0 | BC166: 162 | BE166: =IF(C166="","",1+BE165) -> 
AD167: 163 | AE167: 25 | AF167: 20.2 | AI167: 17.98824882 | AJ167: 20.19575118 | AK167: 16.88449764 | AL167: 21.29950236 | AM167: 15.78074646 | AN167: 22.40325354 | AO167: 19.092 | AQ167: 0 | AR167: 0 | BC167: 163
AD168: 164 | AE168: 25 | AF168: 20.2 | AI168: 17.98824882 | AJ168: 20.19575118 | AK168: 16.88449764 | AL168: 21.29950236 | AM168: 15.78074646 | AN168: 22.40325354 | AO168: 19.092 | AQ168: 0 | AR168: 0 | BC168: 164
AD169: 165 | AE169: 25 | AF169: 20.2 | AI169: 17.98824882 | AJ169: 20.19575118 | AK169: 16.88449764 | AL169: 21.29950236 | AM169: 15.78074646 | AN169: 22.40325354 | AO169: 19.092 | AQ169: 0 | AR169: 0 | BC169: 165
AD170: 166 | AE170: 25 | AF170: 20.2 | AI170: 17.98824882 | AJ170: 20.19575118 | AK170: 16.88449764 | AL170: 21.29950236 | AM170: 15.78074646 | AN170: 22.40325354 | AO170: 19.092 | AQ170: 0 | AR170: 0 | BC170: 166
AD171: 167 | AE171: 25 | AF171: 20.2 | AI171: 17.98824882 | AJ171: 20.19575118 | AK171: 16.88449764 | AL171: 21.29950236 | AM171: 15.78074646 | AN171: 22.40325354 | AO171: 19.092 | AQ171: 0 | AR171: 0 | BC171: 167
AD172: 168 | AE172: 25 | AF172: 20.2 | AI172: 17.98824882 | AJ172: 20.19575118 | AK172: 16.88449764 | AL172: 21.29950236 | AM172: 15.78074646 | AN172: 22.40325354 | AO172: 19.092 | AQ172: 0 | AR172: 0 | BC172: 168
AD173: 169 | AE173: 25 | AF173: 20.2 | AI173: 17.98824882 | AJ173: 20.19575118 | AK173: 16.88449764 | AL173: 21.29950236 | AM173: 15.78074646 | AN173: 22.40325354 | AO173: 19.092 | AQ173: 0 | AR173: 0 | BC173: 169
AD174: 170 | AE174: 25 | AF174: 20.2 | AI174: 17.98824882 | AJ174: 20.19575118 | AK174: 16.88449764 | AL174: 21.29950236 | AM174: 15.78074646 | AN174: 22.40325354 | AO174: 19.092 | AQ174: 0 | AR174: 0 | BC174: 170
AD175: 171 | AE175: 25 | AF175: 20.2 | AI175: 17.98824882 | AJ175: 20.19575118 | AK175: 16.88449764 | AL175: 21.29950236 | AM175: 15.78074646 | AN175: 22.40325354 | AO175: 19.092 | AQ175: 0 | AR175: 0 | BC175: 171
AD176: 172 | AE176: 25 | AF176: 20.2 | AI176: 17.98824882 | AJ176: 20.19575118 | AK176: 16.88449764 | AL176: 21.29950236 | AM176: 15.78074646 | AN176: 22.40325354 | AO176: 19.092 | AQ176: 0 | AR176: 0 | BC176: 172
AD177: 173 | AE177: 25 | AF177: 20.2 | AI177: 17.98824882 | AJ177: 20.19575118 | AK177: 16.88449764 | AL177: 21.29950236 | AM177: 15.78074646 | AN177: 22.40325354 | AO177: 19.092 | AQ177: 0 | AR177: 0 | BC177: 173
AD178: 174 | AE178: 25 | AF178: 20.2 | AI178: 17.98824882 | AJ178: 20.19575118 | AK178: 16.88449764 | AL178: 21.29950236 | AM178: 15.78074646 | AN178: 22.40325354 | AO178: 19.092 | AQ178: 0 | AR178: 0 | BC178: 174
AD179: 175 | AE179: 25 | AF179: 20.2 | AI179: 17.98824882 | AJ179: 20.19575118 | AK179: 16.88449764 | AL179: 21.29950236 | AM179: 15.78074646 | AN179: 22.40325354 | AO179: 19.092 | AQ179: 0 | AR179: 0 | BC179: 175
AD180: 176 | AE180: 25 | AF180: 20.2 | AI180: 17.98824882 | AJ180: 20.19575118 | AK180: 16.88449764 | AL180: 21.29950236 | AM180: 15.78074646 | AN180: 22.40325354 | AO180: 19.092 | AQ180: 0 | AR180: 0 | BC180: 176
AD181: 177 | AE181: 25 | AF181: 20.2 | AI181: 17.98824882 | AJ181: 20.19575118 | AK181: 16.88449764 | AL181: 21.29950236 | AM181: 15.78074646 | AN181: 22.40325354 | AO181: 19.092 | AQ181: 0 | AR181: 0 | BC181: 177
AD182: 178 | AE182: 25 | AF182: 20.2 | AI182: =AI181 -> 17.98824882 | AJ182: 20.19575118 | AK182: 16.88449764 | AL182: 21.29950236 | AM182: 15.78074646 | AN182: 22.40325354 | AO182: 19.092 | AQ182: 0 | AR182: 0 | BC182: 178
AD183: 179 | AE183: 25 | AF183: 20.2 | AI183: 17.98824882 | AJ183: 20.19575118 | AK183: 16.88449764 | AL183: 21.29950236 | AM183: 15.78074646 | AN183: 22.40325354 | AO183: 19.092 | AQ183: 0 | AR183: 0 | BC183: 179
AD184: 180 | AE184: 25 | AF184: 20.2 | AI184: 17.98824882 | AJ184: 20.19575118 | AK184: 16.88449764 | AL184: 21.29950236 | AM184: 15.78074646 | AN184: 22.40325354 | AO184: 19.092 | AQ184: 0 | AR184: 0 | BC184: 180
AD185: 181 | AE185: 25 | AF185: 20.2 | AI185: 17.98824882 | AJ185: 20.19575118 | AK185: 16.88449764 | AL185: 21.29950236 | AM185: 15.78074646 | AN185: 22.40325354 | AO185: 19.092 | AQ185: 0 | AR185: 0 | BC185: 181
AD186: 182 | AE186: 25 | AF186: 20.2 | AI186: 17.98824882 | AJ186: 20.19575118 | AK186: 16.88449764 | AL186: 21.29950236 | AM186: 15.78074646 | AN186: 22.40325354 | AO186: 19.092 | AQ186: 0 | AR186: 0 | BC186: 182
AD187: 183 | AE187: 25 | AF187: 20.2 | AI187: 17.98824882 | AJ187: 20.19575118 | AK187: 16.88449764 | AL187: 21.29950236 | AM187: 15.78074646 | AN187: 22.40325354 | AO187: 19.092 | AQ187: 0 | AR187: 0 | BC187: 183
AD188: 184 | AE188: 25 | AF188: 20.2 | AI188: 17.98824882 | AJ188: 20.19575118 | AK188: 16.88449764 | AL188: 21.29950236 | AM188: 15.78074646 | AN188: 22.40325354 | AO188: 19.092 | AQ188: 0 | AR188: 0 | BC188: 184
AD189: 185 | AE189: 25 | AF189: 20.2 | AI189: 17.98824882 | AJ189: 20.19575118 | AK189: 16.88449764 | AL189: 21.29950236 | AM189: 15.78074646 | AN189: 22.40325354 | AO189: 19.092 | AQ189: 0 | AR189: 0 | BC189: 185
AD190: 186 | AE190: 25 | AF190: 20.2 | AI190: 17.98824882 | AJ190: 20.19575118 | AK190: 16.88449764 | AL190: 21.29950236 | AM190: 15.78074646 | AN190: 22.40325354 | AO190: 19.092 | AQ190: 0 | AR190: 0 | BC190: 186
AD191: 187 | AE191: 25 | AF191: 20.2 | AI191: 17.98824882 | AJ191: 20.19575118 | AK191: 16.88449764 | AL191: 21.29950236 | AM191: 15.78074646 | AN191: 22.40325354 | AO191: 19.092 | AQ191: 0 | AR191: 0 | BC191: 187
AD192: 188 | AE192: 25 | AF192: 20.2 | AI192: 17.98824882 | AJ192: 20.19575118 | AK192: 16.88449764 | AL192: 21.29950236 | AM192: 15.78074646 | AN192: 22.40325354 | AO192: 19.092 | AQ192: 0 | AR192: 0 | BC192: 188
AD193: 189 | AE193: 25 | AF193: 20.2 | AI193: 17.98824882 | AJ193: 20.19575118 | AK193: 16.88449764 | AL193: 21.29950236 | AM193: 15.78074646 | AN193: 22.40325354 | AO193: 19.092 | AQ193: 0 | AR193: 0 | BC193: 189
AD194: 190 | AE194: 25 | AF194: 20.2 | AI194: 17.98824882 | AJ194: 20.19575118 | AK194: 16.88449764 | AL194: 21.29950236 | AM194: 15.78074646 | AN194: 22.40325354 | AO194: 19.092 | AQ194: 0 | AR194: 0 | BC194: 190
AD195: 191 | AE195: 25 | AF195: 20.2 | AI195: 17.98824882 | AJ195: 20.19575118 | AK195: 16.88449764 | AL195: 21.29950236 | AM195: 15.78074646 | AN195: 22.40325354 | AO195: 19.092 | AQ195: 0 | AR195: 0 | BC195: 191
AD196: 192 | AE196: 25 | AF196: 20.2 | AI196: 17.98824882 | AJ196: 20.19575118 | AK196: 16.88449764 | AL196: 21.29950236 | AM196: 15.78074646 | AN196: 22.40325354 | AO196: 19.092 | AQ196: 0 | AR196: 0 | BC196: 192
AD197: 193 | AE197: =IF((Anzahl>AD197),AD197,Anzahl) -> 25 | AF197: 20.2 | AH197: =IF(UGW="",#N/A,IF(C197<>"",UGW,#N/A)) ->  | AI197: 17.98824882 | AJ197: 20.19575118 | AK197: 16.88449764 | AL197: 21.29950236 | AM197: 15.78074646 | AN197: 22.40325354 | AO197: 19.092 | AQ197: =IF(AND(C197<>"",C197<UGW),1,0) -> 0 | AR197: =IF(AND(C197<>"",C197>OGW),1,0) -> 0 | BC197: 193 | BD197: =IF(C197="",NA(),SMALL(xi,BE197)) ->  | BF197: =IF(C197="","",NORMSDIST((BD197-fxds)/Standardabweichung)) ->  | BG197: =IF(C197="","",1-BF197) ->  | BH197: =IF(C197="","",SMALL(BG,BE197)) ->  | BI197: =IF(C197="","",(2*BE197-1)*(LN(BH197)+LN(BF197))) ->  | BJ197: =IF(C197="",NA(),NORMSINV((BE197-0.3)/(Anzahl+0.4))) -> 
AD198: 194 | AE198: 25 | AF198: 20.2 | AG198: =IF(OGW="",#N/A,IF(C198<>"",OGW,#N/A)) ->  | AI198: =AI197 -> 17.98824882 | AJ198: 20.19575118 | AK198: 16.88449764 | AL198: 21.29950236 | AM198: 15.78074646 | AN198: 22.40325354 | AO198: 19.092 | AQ198: 0 | AR198: 0 | BC198: 194 | BE198: =IF(C198="","",1+BE197) -> 
AD199: 195 | AE199: 25 | AF199: 20.2 | AI199: 17.98824882 | AJ199: 20.19575118 | AK199: 16.88449764 | AL199: 21.29950236 | AM199: 15.78074646 | AN199: 22.40325354 | AO199: 19.092 | AQ199: 0 | AR199: 0 | BC199: 195
AD200: 196 | AE200: 25 | AF200: =IF(C200<>"",C200,AF199) -> 20.2 | AI200: 17.98824882 | AJ200: 20.19575118 | AK200: 16.88449764 | AL200: 21.29950236 | AM200: 15.78074646 | AN200: 22.40325354 | AO200: 19.092 | AQ200: 0 | AR200: 0 | BC200: 196
AD201: 197 | AE201: 25 | AF201: =IF(C201<>"",C201,AF200) -> 20.2 | AI201: 17.98824882 | AJ201: 20.19575118 | AK201: 16.88449764 | AL201: 21.29950236 | AM201: 15.78074646 | AN201: 22.40325354 | AO201: 19.092 | AQ201: 0 | AR201: 0 | BC201: 197
AD202: 198 | AE202: 25 | AF202: =IF(C202<>"",C202,AF201) -> 20.2 | AI202: 17.98824882 | AJ202: 20.19575118 | AK202: 16.88449764 | AL202: 21.29950236 | AM202: 15.78074646 | AN202: 22.40325354 | AO202: 19.092 | AQ202: 0 | AR202: 0 | BC202: 198
AD203: 199 | AE203: 25 | AF203: =IF(C203<>"",C203,AF202) -> 20.2 | AI203: 17.98824882 | AJ203: 20.19575118 | AK203: 16.88449764 | AL203: 21.29950236 | AM203: 15.78074646 | AN203: 22.40325354 | AO203: 19.092 | AQ203: 0 | AR203: 0 | BC203: 199
... 2 more rows

Sheet info
B2: Sie benutzen eine Vorlage von www.sixsigmblackbelt.de
B3: ="- Sie müssen die Datei mit der Endung .xlsm speichern, ansonsten gehen Funktionalitäten verloren" -> - Sie müssen die Datei mit der Endung .xlsm speichern, ansonsten gehen Funktionalitäten verloren
B6: Haben Sie Fragen, wenden Sie sich bitte per Mail an
B7: roland.schnurr@sixsigmablackbelt.de
B8: https://www.sixsigmablackbelt.de
B10: Valdierung der Vorlage
